Workbook

Sheet Blad 1
A1: 3 van de 4 | W1: Basis | X1: % Hcp | Y1: Max
W2: 220 | X2: 80 | Y2: 65
A3: Nr. | B3: Lidnr | C3: Gem. | D3: FORMULE VERBERGEN | I3: Voornaam | J3: Achternaam | K3: HCP Game | L3: G1 | M3: G2 | N3: G3 | O3: G4 | Q3: Scratch | R3: Gem. Scratch | S3: Totaal Handicap | T3: Gem. Handicap | U3: Totaal
A4: 1 | C4: 155 | D4: =$W$2 -> 220 | E4: =IF(C4<>"",SUM(D4-C4),"") -> 65 | F4: =$X$2/100 -> 0.8 | G4: =IF(C4<>"",TRUNC(E4*F4),"") -> 52.00 | H4: =IF(G4>$Y$2,$Y$2,G4) -> 52.00 | I4: Karel | J4: Wezel | K4: =IF(C4<>"",H4,"") -> 52 | L4: 178 | M4: 161 | N4: 148 | O4: 150 | P4: =MIN($L4:$O4) -> 148 | Q4: =IF(V4>0,SUM(L4+M4+N4+O4-P4),"") -> 489 | R4: =IF(V4>1,SUM(Q4/(V4-1)),"") -> 163.00 | S4: =IF(V4>0,SUM(V4-1)*K4,"") -> 156 | T4: =IF(V4>1,SUM(U4/(V4-1)),"") -> 215.00 | U4: =IF(V4>0,SUM(Q4+S4),0) -> 645 | V4: =COUNTA(L4:O4) -> 4
A5: 2 | C5: 182 | D5: =$W$2 -> 220 | E5: =IF(C5<>"",SUM(D5-C5),"") -> 38 | F5: =$X$2/100 -> 0.8 | G5: =IF(C5<>"",TRUNC(E5*F5),"") -> 30.00 | H5: =IF(G5>$Y$2,$Y$2,G5) -> 30.00 | I5: Mies | J5: Bouwman | K5: =IF(C5<>"",H5,"") -> 30 | L5: 172 | M5: 182 | N5: 166 | O5: 165 | P5: =MIN($L5:$O5) -> 165 | Q5: =IF(V5>0,SUM(L5+M5+N5+O5-P5),"") -> 520 | R5: =IF(V5>1,SUM(Q5/(V5-1)),"") -> 173.33 | S5: =IF(V5>0,SUM(V5-1)*K5,"") -> 90 | T5: =IF(V5>1,SUM(U5/(V5-1)),"") -> 203.33 | U5: =IF(V5>0,SUM(Q5+S5),0) -> 610 | V5: =COUNTA(L5:O5) -> 4
A6: 3 | C6: 152 | D6: =$W$2 -> 220 | E6: =IF(C6<>"",SUM(D6-C6),"") -> 68 | F6: =$X$2/100 -> 0.8 | G6: =IF(C6<>"",TRUNC(E6*F6),"") -> 54.00 | H6: =IF(G6>$Y$2,$Y$2,G6) -> 54.00 | I6: Sjan | J6: Totaal | K6: =IF(C6<>"",H6,"") -> 54 | L6: 145 | M6: 123 | N6: 181 | O6: 163 | P6: =MIN($L6:$O6) -> 123 | Q6: =IF(V6>0,SUM(L6+M6+N6+O6-P6),"") -> 489 | R6: =IF(V6>1,SUM(Q6/(V6-1)),"") -> 163.00 | S6: =IF(V6>0,SUM(V6-1)*K6,"") -> 162 | T6: =IF(V6>1,SUM(U6/(V6-1)),"") -> 217.00 | U6: =IF(V6>0,SUM(Q6+S6),0) -> 651 | V6: 4
A7: 4 | C7: 172 | D7: =$W$2 -> 220 | E7: =IF(C7<>"",SUM(D7-C7),"") -> 48 | F7: =$X$2/100 -> 0.8 | G7: =IF(C7<>"",TRUNC(E7*F7),"") -> 38.00 | H7: =IF(G7>$Y$2,$Y$2,G7) -> 38.00 | I7: Theo | J7: Lucassen | K7: =IF(C7<>"",H7,"") -> 38 | L7: 136 | M7: 152 | N7: 170 | O7: 166 | P7: =MIN($L7:$O7) -> 136 | Q7: =IF(V7>0,SUM(L7+M7+N7+O7-P7),"") -> 488 | R7: =IF(V7>1,SUM(Q7/(V7-1)),"") -> 162.67 | S7: =IF(V7>0,SUM(V7-1)*K7,"") -> 114 | T7: =IF(V7>1,SUM(U7/(V7-1)),"") -> 200.67 | U7: =IF(V7>0,SUM(Q7+S7),0) -> 602 | V7: 4
A8: 5 | C8: 120 | D8: =$W$2 -> 220 | E8: =IF(C8<>"",SUM(D8-C8),"") -> 100 | F8: =$X$2/100 -> 0.8 | G8: =IF(C8<>"",TRUNC(E8*F8),"") -> 80.00 | H8: =IF(G8>$Y$2,$Y$2,G8) -> 65.00 | I8: Wim | J8: Jansen | K8: =IF(C8<>"",H8,"") -> 65 | L8: 120 | M8: 169 | N8: 145 | O8: 141 | P8: =MIN($L8:$O8) -> 120 | Q8: =IF(V8>0,SUM(L8+M8+N8+O8-P8),"") -> 455 | R8: =IF(V8>1,SUM(Q8/(V8-1)),"") -> 151.67 | S8: =IF(V8>0,SUM(V8-1)*K8,"") -> 195 | T8: =IF(V8>1,SUM(U8/(V8-1)),"") -> 216.67 | U8: =IF(V8>0,SUM(Q8+S8),0) -> 650 | V8: 4
A9: 6 | D9: =$W$2 -> 220 | E9: =IF(C9<>"",SUM(D9-C9),"") ->  | F9: =$X$2/100 -> 0.8 | G9: =IF(C9<>"",TRUNC(E9*F9),"") ->  | H9: =IF(G9>$Y$2,$Y$2,G9) -> 65.00 | K9: =IF(C9<>"",H9,"") ->  | P9: =MIN($L9:$O9) -> 0 | Q9: =IF(V9>0,SUM(L9+M9+N9+O9-P9),"") ->  | R9: =IF(V9>1,SUM(Q9/(V9-1)),"") ->  | S9: =IF(V9>0,SUM(V9-1)*K9,"") ->  | T9: =IF(V9>1,SUM(U9/(V9-1)),"") ->  | U9: =IF(V9>0,SUM(Q9+S9),0) -> 0 | V9: 0
A10: 7 | D10: =$W$2 -> 220 | E10: =IF(C10<>"",SUM(D10-C10),"") ->  | F10: =$X$2/100 -> 0.8 | G10: =IF(C10<>"",TRUNC(E10*F10),"") ->  | H10: =IF(G10>$Y$2,$Y$2,G10) -> 65.00 | K10: =IF(C10<>"",H10,"") ->  | P10: =MIN($L10:$O10) -> 0 | Q10: =IF(V10>0,SUM(L10+M10+N10+O10-P10),"") ->  | R10: =IF(V10>1,SUM(Q10/(V10-1)),"") ->  | S10: =IF(V10>0,SUM(V10-1)*K10,"") ->  | T10: =IF(V10>1,SUM(U10/(V10-1)),"") ->  | U10: =IF(V10>0,SUM(Q10+S10),0) -> 0 | V10: 0
A11: 8 | D11: =$W$2 -> 220 | E11: =IF(C11<>"",SUM(D11-C11),"") ->  | F11: =$X$2/100 -> 0.8 | G11: =IF(C11<>"",TRUNC(E11*F11),"") ->  | H11: =IF(G11>$Y$2,$Y$2,G11) -> 65.00 | K11: =IF(C11<>"",H11,"") ->  | P11: =MIN($L11:$O11) -> 0 | Q11: =IF(V11>0,SUM(L11+M11+N11+O11-P11),"") ->  | R11: =IF(V11>1,SUM(Q11/(V11-1)),"") ->  | S11: =IF(V11>0,SUM(V11-1)*K11,"") ->  | T11: =IF(V11>1,SUM(U11/(V11-1)),"") ->  | U11: =IF(V11>0,SUM(Q11+S11),0) -> 0 | V11: 0
A12: 9 | D12: =$W$2 -> 220 | E12: =IF(C12<>"",SUM(D12-C12),"") ->  | F12: =$X$2/100 -> 0.8 | G12: =IF(C12<>"",TRUNC(E12*F12),"") ->  | H12: =IF(G12>$Y$2,$Y$2,G12) -> 65.00 | K12: =IF(C12<>"",H12,"") ->  | P12: =MIN($L12:$O12) -> 0 | Q12: =IF(V12>0,SUM(L12+M12+N12+O12-P12),"") ->  | R12: =IF(V12>1,SUM(Q12/(V12-1)),"") ->  | S12: =IF(V12>0,SUM(V12-1)*K12,"") ->  | T12: =IF(V12>1,SUM(U12/(V12-1)),"") ->  | U12: =IF(V12>0,SUM(Q12+S12),0) -> 0 | V12: 0
A13: 10 | D13: =$W$2 -> 220 | E13: =IF(C13<>"",SUM(D13-C13),"") ->  | F13: =$X$2/100 -> 0.8 | G13: =IF(C13<>"",TRUNC(E13*F13),"") ->  | H13: =IF(G13>$Y$2,$Y$2,G13) -> 65.00 | K13: =IF(C13<>"",H13,"") ->  | P13: =MIN($L13:$O13) -> 0 | Q13: =IF(V13>0,SUM(L13+M13+N13+O13-P13),"") ->  | R13: =IF(V13>1,SUM(Q13/(V13-1)),"") ->  | S13: =IF(V13>0,SUM(V13-1)*K13,"") ->  | T13: =IF(V13>1,SUM(U13/(V13-1)),"") ->  | U13: =IF(V13>0,SUM(Q13+S13),0) -> 0 | V13: 0
A14: 11 | D14: =$W$2 -> 220 | E14: =IF(C14<>"",SUM(D14-C14),"") ->  | F14: =$X$2/100 -> 0.8 | G14: =IF(C14<>"",TRUNC(E14*F14),"") ->  | H14: =IF(G14>$Y$2,$Y$2,G14) -> 65.00 | K14: =IF(C14<>"",H14,"") ->  | P14: =MIN($L14:$O14) -> 0 | Q14: =IF(V14>0,SUM(L14+M14+N14+O14-P14),"") ->  | R14: =IF(V14>1,SUM(Q14/(V14-1)),"") ->  | S14: =IF(V14>0,SUM(V14-1)*K14,"") ->  | T14: =IF(V14>1,SUM(U14/(V14-1)),"") ->  | U14: =IF(V14>0,SUM(Q14+S14),0) -> 0 | V14: 0
A15: 12 | D15: =$W$2 -> 220 | E15: =IF(C15<>"",SUM(D15-C15),"") ->  | F15: =$X$2/100 -> 0.8 | G15: =IF(C15<>"",TRUNC(E15*F15),"") ->  | H15: =IF(G15>$Y$2,$Y$2,G15) -> 65.00 | K15: =IF(C15<>"",H15,"") ->  | P15: =MIN($L15:$O15) -> 0 | Q15: =IF(V15>0,SUM(L15+M15+N15+O15-P15),"") ->  | R15: =IF(V15>1,SUM(Q15/(V15-1)),"") ->  | S15: =IF(V15>0,SUM(V15-1)*K15,"") ->  | T15: =IF(V15>1,SUM(U15/(V15-1)),"") ->  | U15: =IF(V15>0,SUM(Q15+S15),0) -> 0 | V15: 0
A16: 13 | D16: =$W$2 -> 220 | E16: =IF(C16<>"",SUM(D16-C16),"") ->  | F16: =$X$2/100 -> 0.8 | G16: =IF(C16<>"",TRUNC(E16*F16),"") ->  | H16: =IF(G16>$Y$2,$Y$2,G16) -> 65.00 | K16: =IF(C16<>"",H16,"") ->  | P16: =MIN($L16:$O16) -> 0 | Q16: =IF(V16>0,SUM(L16+M16+N16+O16-P16),"") ->  | R16: =IF(V16>1,SUM(Q16/(V16-1)),"") ->  | S16: =IF(V16>0,SUM(V16-1)*K16,"") ->  | T16: =IF(V16>1,SUM(U16/(V16-1)),"") ->  | U16: =IF(V16>0,SUM(Q16+S16),0) -> 0 | V16: 0
A17: 14 | D17: =$W$2 -> 220 | E17: =IF(C17<>"",SUM(D17-C17),"") ->  | F17: =$X$2/100 -> 0.8 | G17: =IF(C17<>"",TRUNC(E17*F17),"") ->  | H17: =IF(G17>$Y$2,$Y$2,G17) -> 65.00 | K17: =IF(C17<>"",H17,"") ->  | P17: =MIN($L17:$O17) -> 0 | Q17: =IF(V17>0,SUM(L17+M17+N17+O17-P17),"") ->  | R17: =IF(V17>1,SUM(Q17/(V17-1)),"") ->  | S17: =IF(V17>0,SUM(V17-1)*K17,"") ->  | T17: =IF(V17>1,SUM(U17/(V17-1)),"") ->  | U17: =IF(V17>0,SUM(Q17+S17),0) -> 0 | V17: 0
A18: 15 | D18: =$W$2 -> 220 | E18: =IF(C18<>"",SUM(D18-C18),"") ->  | F18: =$X$2/100 -> 0.8 | G18: =IF(C18<>"",TRUNC(E18*F18),"") ->  | H18: =IF(G18>$Y$2,$Y$2,G18) -> 65.00 | K18: =IF(C18<>"",H18,"") ->  | P18: =MIN($L18:$O18) -> 0 | Q18: =IF(V18>0,SUM(L18+M18+N18+O18-P18),"") ->  | R18: =IF(V18>1,SUM(Q18/(V18-1)),"") ->  | S18: =IF(V18>0,SUM(V18-1)*K18,"") ->  | T18: =IF(V18>1,SUM(U18/(V18-1)),"") ->  | U18: =IF(V18>0,SUM(Q18+S18),0) -> 0 | V18: 0
A19: 16 | D19: =$W$2 -> 220 | E19: =IF(C19<>"",SUM(D19-C19),"") ->  | F19: =$X$2/100 -> 0.8 | G19: =IF(C19<>"",TRUNC(E19*F19),"") ->  | H19: =IF(G19>$Y$2,$Y$2,G19) -> 65.00 | K19: =IF(C19<>"",H19,"") ->  | P19: =MIN($L19:$O19) -> 0 | Q19: =IF(V19>0,SUM(L19+M19+N19+O19-P19),"") ->  | R19: =IF(V19>1,SUM(Q19/(V19-1)),"") ->  | S19: =IF(V19>0,SUM(V19-1)*K19,"") ->  | T19: =IF(V19>1,SUM(U19/(V19-1)),"") ->  | U19: =IF(V19>0,SUM(Q19+S19),0) -> 0 | V19: 0
A20: 17 | D20: =$W$2 -> 220 | E20: =IF(C20<>"",SUM(D20-C20),"") ->  | F20: =$X$2/100 -> 0.8 | G20: =IF(C20<>"",TRUNC(E20*F20),"") ->  | H20: =IF(G20>$Y$2,$Y$2,G20) -> 65.00 | K20: =IF(C20<>"",H20,"") ->  | P20: =MIN($L20:$O20) -> 0 | Q20: =IF(V20>0,SUM(L20+M20+N20+O20-P20),"") ->  | R20: =IF(V20>1,SUM(Q20/(V20-1)),"") ->  | S20: =IF(V20>0,SUM(V20-1)*K20,"") ->  | T20: =IF(V20>1,SUM(U20/(V20-1)),"") ->  | U20: =IF(V20>0,SUM(Q20+S20),0) -> 0 | V20: 0
A21: 18 | D21: =$W$2 -> 220 | E21: =IF(C21<>"",SUM(D21-C21),"") ->  | F21: =$X$2/100 -> 0.8 | G21: =IF(C21<>"",TRUNC(E21*F21),"") ->  | H21: =IF(G21>$Y$2,$Y$2,G21) -> 65.00 | K21: =IF(C21<>"",H21,"") ->  | P21: =MIN($L21:$O21) -> 0 | Q21: =IF(V21>0,SUM(L21+M21+N21+O21-P21),"") ->  | R21: =IF(V21>1,SUM(Q21/(V21-1)),"") ->  | S21: =IF(V21>0,SUM(V21-1)*K21,"") ->  | T21: =IF(V21>1,SUM(U21/(V21-1)),"") ->  | U21: =IF(V21>0,SUM(Q21+S21),0) -> 0 | V21: 0
A22: 19 | D22: =$W$2 -> 220 | E22: =IF(C22<>"",SUM(D22-C22),"") ->  | F22: =$X$2/100 -> 0.8 | G22: =IF(C22<>"",TRUNC(E22*F22),"") ->  | H22: =IF(G22>$Y$2,$Y$2,G22) -> 65.00 | K22: =IF(C22<>"",H22,"") ->  | P22: =MIN($L22:$O22) -> 0 | Q22: =IF(V22>0,SUM(L22+M22+N22+O22-P22),"") ->  | R22: =IF(V22>1,SUM(Q22/(V22-1)),"") ->  | S22: =IF(V22>0,SUM(V22-1)*K22,"") ->  | T22: =IF(V22>1,SUM(U22/(V22-1)),"") ->  | U22: =IF(V22>0,SUM(Q22+S22),0) -> 0 | V22: 0
A23: 20 | D23: =$W$2 -> 220 | E23: =IF(C23<>"",SUM(D23-C23),"") ->  | F23: =$X$2/100 -> 0.8 | G23: =IF(C23<>"",TRUNC(E23*F23),"") ->  | H23: =IF(G23>$Y$2,$Y$2,G23) -> 65.00 | K23: =IF(C23<>"",H23,"") ->  | P23: =MIN($L23:$O23) -> 0 | Q23: =IF(V23>0,SUM(L23+M23+N23+O23-P23),"") ->  | R23: =IF(V23>1,SUM(Q23/(V23-1)),"") ->  | S23: =IF(V23>0,SUM(V23-1)*K23,"") ->  | T23: =IF(V23>1,SUM(U23/(V23-1)),"") ->  | U23: =IF(V23>0,SUM(Q23+S23),0) -> 0 | V23: 0
A24: 21 | D24: =$W$2 -> 220 | E24: =IF(C24<>"",SUM(D24-C24),"") ->  | F24: =$X$2/100 -> 0.8 | G24: =IF(C24<>"",TRUNC(E24*F24),"") ->  | H24: =IF(G24>$Y$2,$Y$2,G24) -> 65.00 | K24: =IF(C24<>"",H24,"") ->  | P24: =MIN($L24:$O24) -> 0 | Q24: =IF(V24>0,SUM(L24+M24+N24+O24-P24),"") ->  | R24: =IF(V24>1,SUM(Q24/(V24-1)),"") ->  | S24: =IF(V24>0,SUM(V24-1)*K24,"") ->  | T24: =IF(V24>1,SUM(U24/(V24-1)),"") ->  | U24: =IF(V24>0,SUM(Q24+S24),0) -> 0 | V24: 0
A25: 22 | D25: =$W$2 -> 220 | E25: =IF(C25<>"",SUM(D25-C25),"") ->  | F25: =$X$2/100 -> 0.8 | G25: =IF(C25<>"",TRUNC(E25*F25),"") ->  | H25: =IF(G25>$Y$2,$Y$2,G25) -> 65.00 | K25: =IF(C25<>"",H25,"") ->  | P25: =MIN($L25:$O25) -> 0 | Q25: =IF(V25>0,SUM(L25+M25+N25+O25-P25),"") ->  | R25: =IF(V25>1,SUM(Q25/(V25-1)),"") ->  | S25: =IF(V25>0,SUM(V25-1)*K25,"") ->  | T25: =IF(V25>1,SUM(U25/(V25-1)),"") ->  | U25: =IF(V25>0,SUM(Q25+S25),0) -> 0 | V25: 0
A26: 23 | D26: =$W$2 -> 220 | E26: =IF(C26<>"",SUM(D26-C26),"") ->  | F26: =$X$2/100 -> 0.8 | G26: =IF(C26<>"",TRUNC(E26*F26),"") ->  | H26: =IF(G26>$Y$2,$Y$2,G26) -> 65.00 | K26: =IF(C26<>"",H26,"") ->  | P26: =MIN($L26:$O26) -> 0 | Q26: =IF(V26>0,SUM(L26+M26+N26+O26-P26),"") ->  | R26: =IF(V26>1,SUM(Q26/(V26-1)),"") ->  | S26: =IF(V26>0,SUM(V26-1)*K26,"") ->  | T26: =IF(V26>1,SUM(U26/(V26-1)),"") ->  | U26: =IF(V26>0,SUM(Q26+S26),0) -> 0 | V26: 0
A27: 24 | D27: =$W$2 -> 220 | E27: =IF(C27<>"",SUM(D27-C27),"") ->  | F27: =$X$2/100 -> 0.8 | G27: =IF(C27<>"",TRUNC(E27*F27),"") ->  | H27: =IF(G27>$Y$2,$Y$2,G27) -> 65.00 | K27: =IF(C27<>"",H27,"") ->  | P27: =MIN($L27:$O27) -> 0 | Q27: =IF(V27>0,SUM(L27+M27+N27+O27-P27),"") ->  | R27: =IF(V27>1,SUM(Q27/(V27-1)),"") ->  | S27: =IF(V27>0,SUM(V27-1)*K27,"") ->  | T27: =IF(V27>1,SUM(U27/(V27-1)),"") ->  | U27: =IF(V27>0,SUM(Q27+S27),0) -> 0 | V27: 0
A28: 25 | D28: =$W$2 -> 220 | E28: =IF(C28<>"",SUM(D28-C28),"") ->  | F28: =$X$2/100 -> 0.8 | G28: =IF(C28<>"",TRUNC(E28*F28),"") ->  | H28: =IF(G28>$Y$2,$Y$2,G28) -> 65.00 | K28: =IF(C28<>"",H28,"") ->  | P28: =MIN($L28:$O28) -> 0 | Q28: =IF(V28>0,SUM(L28+M28+N28+O28-P28),"") ->  | R28: =IF(V28>1,SUM(Q28/(V28-1)),"") ->  | S28: =IF(V28>0,SUM(V28-1)*K28,"") ->  | T28: =IF(V28>1,SUM(U28/(V28-1)),"") ->  | U28: =IF(V28>0,SUM(Q28+S28),0) -> 0 | V28: 0
A29: 26 | D29: =$W$2 -> 220 | E29: =IF(C29<>"",SUM(D29-C29),"") ->  | F29: =$X$2/100 -> 0.8 | G29: =IF(C29<>"",TRUNC(E29*F29),"") ->  | H29: =IF(G29>$Y$2,$Y$2,G29) -> 65.00 | K29: =IF(C29<>"",H29,"") ->  | P29: =MIN($L29:$O29) -> 0 | Q29: =IF(V29>0,SUM(L29+M29+N29+O29-P29),"") ->  | R29: =IF(V29>1,SUM(Q29/(V29-1)),"") ->  | S29: =IF(V29>0,SUM(V29-1)*K29,"") ->  | T29: =IF(V29>1,SUM(U29/(V29-1)),"") ->  | U29: =IF(V29>0,SUM(Q29+S29),0) -> 0 | V29: 0
A30: 27 | D30: =$W$2 -> 220 | E30: =IF(C30<>"",SUM(D30-C30),"") ->  | F30: =$X$2/100 -> 0.8 | G30: =IF(C30<>"",TRUNC(E30*F30),"") ->  | H30: =IF(G30>$Y$2,$Y$2,G30) -> 65.00 | K30: =IF(C30<>"",H30,"") ->  | P30: =MIN($L30:$O30) -> 0 | Q30: =IF(V30>0,SUM(L30+M30+N30+O30-P30),"") ->  | R30: =IF(V30>1,SUM(Q30/(V30-1)),"") ->  | S30: =IF(V30>0,SUM(V30-1)*K30,"") ->  | T30: =IF(V30>1,SUM(U30/(V30-1)),"") ->  | U30: =IF(V30>0,SUM(Q30+S30),0) -> 0 | V30: 0
A31: 28 | D31: =$W$2 -> 220 | E31: =IF(C31<>"",SUM(D31-C31),"") ->  | F31: =$X$2/100 -> 0.8 | G31: =IF(C31<>"",TRUNC(E31*F31),"") ->  | H31: =IF(G31>$Y$2,$Y$2,G31) -> 65.00 | K31: =IF(C31<>"",H31,"") ->  | P31: =MIN($L31:$O31) -> 0 | Q31: =IF(V31>0,SUM(L31+M31+N31+O31-P31),"") ->  | R31: =IF(V31>1,SUM(Q31/(V31-1)),"") ->  | S31: =IF(V31>0,SUM(V31-1)*K31,"") ->  | T31: =IF(V31>1,SUM(U31/(V31-1)),"") ->  | U31: =IF(V31>0,SUM(Q31+S31),0) -> 0 | V31: 0
A32: 29 | D32: =$W$2 -> 220 | E32: =IF(C32<>"",SUM(D32-C32),"") ->  | F32: =$X$2/100 -> 0.8 | G32: =IF(C32<>"",TRUNC(E32*F32),"") ->  | H32: =IF(G32>$Y$2,$Y$2,G32) -> 65.00 | K32: =IF(C32<>"",H32,"") ->  | P32: =MIN($L32:$O32) -> 0 | Q32: =IF(V32>0,SUM(L32+M32+N32+O32-P32),"") ->  | R32: =IF(V32>1,SUM(Q32/(V32-1)),"") ->  | S32: =IF(V32>0,SUM(V32-1)*K32,"") ->  | T32: =IF(V32>1,SUM(U32/(V32-1)),"") ->  | U32: =IF(V32>0,SUM(Q32+S32),0) -> 0 | V32: 0
A33: 30 | D33: =$W$2 -> 220 | E33: =IF(C33<>"",SUM(D33-C33),"") ->  | F33: =$X$2/100 -> 0.8 | G33: =IF(C33<>"",TRUNC(E33*F33),"") ->  | H33: =IF(G33>$Y$2,$Y$2,G33) -> 65.00 | K33: =IF(C33<>"",H33,"") ->  | P33: =MIN($L33:$O33) -> 0 | Q33: =IF(V33>0,SUM(L33+M33+N33+O33-P33),"") ->  | R33: =IF(V33>1,SUM(Q33/(V33-1)),"") ->  | S33: =IF(V33>0,SUM(V33-1)*K33,"") ->  | T33: =IF(V33>1,SUM(U33/(V33-1)),"") ->  | U33: =IF(V33>0,SUM(Q33+S33),0) -> 0 | V33: 0
A34: =A33+1 -> 31 | D34: =$W$2 -> 220 | E34: =IF(C34<>"",SUM(D34-C34),"") ->  | F34: =$X$2/100 -> 0.8 | G34: =IF(C34<>"",TRUNC(E34*F34),"") ->  | H34: =IF(G34>$Y$2,$Y$2,G34) -> 65.00 | K34: =IF(C34<>"",H34,"") ->  | P34: =MIN($L34:$O34) -> 0 | Q34: =IF(V34>0,SUM(L34+M34+N34+O34-P34),"") ->  | R34: =IF(V34>1,SUM(Q34/(V34-1)),"") ->  | S34: =IF(V34>0,SUM(V34-1)*K34,"") ->  | T34: =IF(V34>1,SUM(U34/(V34-1)),"") ->  | U34: =IF(V34>0,SUM(Q34+S34),0) -> 0 | V34: 0
A35: =A34+1 -> 32 | D35: =$W$2 -> 220 | E35: =IF(C35<>"",SUM(D35-C35),"") ->  | F35: =$X$2/100 -> 0.8 | G35: =IF(C35<>"",TRUNC(E35*F35),"") ->  | H35: =IF(G35>$Y$2,$Y$2,G35) -> 65.00 | K35: =IF(C35<>"",H35,"") ->  | P35: =MIN($L35:$O35) -> 0 | Q35: =IF(V35>0,SUM(L35+M35+N35+O35-P35),"") ->  | R35: =IF(V35>1,SUM(Q35/(V35-1)),"") ->  | S35: =IF(V35>0,SUM(V35-1)*K35,"") ->  | T35: =IF(V35>1,SUM(U35/(V35-1)),"") ->  | U35: =IF(V35>0,SUM(Q35+S35),0) -> 0 | V35: 0
A36: 33 | D36: =$W$2 -> 220 | E36: =IF(C36<>"",SUM(D36-C36),"") ->  | F36: =$X$2/100 -> 0.8 | G36: =IF(C36<>"",TRUNC(E36*F36),"") ->  | H36: =IF(G36>$Y$2,$Y$2,G36) -> 65.00 | K36: =IF(C36<>"",H36,"") ->  | P36: =MIN($L36:$O36) -> 0 | Q36: =IF(V36>0,SUM(L36+M36+N36+O36-P36),"") ->  | R36: =IF(V36>1,SUM(Q36/(V36-1)),"") ->  | S36: =IF(V36>0,SUM(V36-1)*K36,"") ->  | T36: =IF(V36>1,SUM(U36/(V36-1)),"") ->  | U36: =IF(V36>0,SUM(Q36+S36),0) -> 0 | V36: 0
A37: 34 | D37: =$W$2 -> 220 | E37: =IF(C37<>"",SUM(D37-C37),"") ->  | F37: =$X$2/100 -> 0.8 | G37: =IF(C37<>"",TRUNC(E37*F37),"") ->  | H37: =IF(G37>$Y$2,$Y$2,G37) -> 65.00 | K37: =IF(C37<>"",H37,"") ->  | P37: =MIN($L37:$O37) -> 0 | Q37: =IF(V37>0,SUM(L37+M37+N37+O37-P37),"") ->  | R37: =IF(V37>1,SUM(Q37/(V37-1)),"") ->  | S37: =IF(V37>0,SUM(V37-1)*K37,"") ->  | T37: =IF(V37>1,SUM(U37/(V37-1)),"") ->  | U37: =IF(V37>0,SUM(Q37+S37),0) -> 0 | V37: 0
A38: 35 | D38: =$W$2 -> 220 | E38: =IF(C38<>"",SUM(D38-C38),"") ->  | F38: =$X$2/100 -> 0.8 | G38: =IF(C38<>"",TRUNC(E38*F38),"") ->  | H38: =IF(G38>$Y$2,$Y$2,G38) -> 65.00 | K38: =IF(C38<>"",H38,"") ->  | P38: =MIN($L38:$O38) -> 0 | Q38: =IF(V38>0,SUM(L38+M38+N38+O38-P38),"") ->  | R38: =IF(V38>1,SUM(Q38/(V38-1)),"") ->  | S38: =IF(V38>0,SUM(V38-1)*K38,"") ->  | T38: =IF(V38>1,SUM(U38/(V38-1)),"") ->  | U38: =IF(V38>0,SUM(Q38+S38),0) -> 0 | V38: 0
A39: 36 | D39: =$W$2 -> 220 | E39: =IF(C39<>"",SUM(D39-C39),"") ->  | F39: =$X$2/100 -> 0.8 | G39: =IF(C39<>"",TRUNC(E39*F39),"") ->  | H39: =IF(G39>$Y$2,$Y$2,G39) -> 65.00 | K39: =IF(C39<>"",H39,"") ->  | P39: =MIN($L39:$O39) -> 0 | Q39: =IF(V39>0,SUM(L39+M39+N39+O39-P39),"") ->  | R39: =IF(V39>1,SUM(Q39/(V39-1)),"") ->  | S39: =IF(V39>0,SUM(V39-1)*K39,"") ->  | T39: =IF(V39>1,SUM(U39/(V39-1)),"") ->  | U39: =IF(V39>0,SUM(Q39+S39),0) -> 0 | V39: 0
A40: 37 | D40: =$W$2 -> 220 | E40: =IF(C40<>"",SUM(D40-C40),"") ->  | F40: =$X$2/100 -> 0.8 | G40: =IF(C40<>"",TRUNC(E40*F40),"") ->  | H40: =IF(G40>$Y$2,$Y$2,G40) -> 65.00 | K40: =IF(C40<>"",H40,"") ->  | P40: =MIN($L40:$O40) -> 0 | Q40: =IF(V40>0,SUM(L40+M40+N40+O40-P40),"") ->  | R40: =IF(V40>1,SUM(Q40/(V40-1)),"") ->  | S40: =IF(V40>0,SUM(V40-1)*K40,"") ->  | T40: =IF(V40>1,SUM(U40/(V40-1)),"") ->  | U40: =IF(V40>0,SUM(Q40+S40),0) -> 0 | V40: 0
A41: 38 | D41: =$W$2 -> 220 | E41: =IF(C41<>"",SUM(D41-C41),"") ->  | F41: =$X$2/100 -> 0.8 | G41: =IF(C41<>"",TRUNC(E41*F41),"") ->  | H41: =IF(G41>$Y$2,$Y$2,G41) -> 65.00 | K41: =IF(C41<>"",H41,"") ->  | P41: =MIN($L41:$O41) -> 0 | Q41: =IF(V41>0,SUM(L41+M41+N41+O41-P41),"") ->  | R41: =IF(V41>1,SUM(Q41/(V41-1)),"") ->  | S41: =IF(V41>0,SUM(V41-1)*K41,"") ->  | T41: =IF(V41>1,SUM(U41/(V41-1)),"") ->  | U41: =IF(V41>0,SUM(Q41+S41),0) -> 0 | V41: 0
A42: 39 | D42: =$W$2 -> 220 | E42: =IF(C42<>"",SUM(D42-C42),"") ->  | F42: =$X$2/100 -> 0.8 | G42: =IF(C42<>"",TRUNC(E42*F42),"") ->  | H42: =IF(G42>$Y$2,$Y$2,G42) -> 65.00 | K42: =IF(C42<>"",H42,"") ->  | P42: =MIN($L42:$O42) -> 0 | Q42: =IF(V42>0,SUM(L42+M42+N42+O42-P42),"") ->  | R42: =IF(V42>1,SUM(Q42/(V42-1)),"") ->  | S42: =IF(V42>0,SUM(V42-1)*K42,"") ->  | T42: =IF(V42>1,SUM(U42/(V42-1)),"") ->  | U42: =IF(V42>0,SUM(Q42+S42),0) -> 0 | V42: 0
A43: 40 | D43: =$W$2 -> 220 | E43: =IF(C43<>"",SUM(D43-C43),"") ->  | F43: =$X$2/100 -> 0.8 | G43: =IF(C43<>"",TRUNC(E43*F43),"") ->  | H43: =IF(G43>$Y$2,$Y$2,G43) -> 65.00 | K43: =IF(C43<>"",H43,"") ->  | P43: =MIN($L43:$O43) -> 0 | Q43: =IF(V43>0,SUM(L43+M43+N43+O43-P43),"") ->  | R43: =IF(V43>1,SUM(Q43/(V43-1)),"") ->  | S43: =IF(V43>0,SUM(V43-1)*K43,"") ->  | T43: =IF(V43>1,SUM(U43/(V43-1)),"") ->  | U43: =IF(V43>0,SUM(Q43+S43),0) -> 0 | V43: 0
A44: 41 | D44: =$W$2 -> 220 | E44: =IF(C44<>"",SUM(D44-C44),"") ->  | F44: =$X$2/100 -> 0.8 | G44: =IF(C44<>"",TRUNC(E44*F44),"") ->  | H44: =IF(G44>$Y$2,$Y$2,G44) -> 65.00 | K44: =IF(C44<>"",H44,"") ->  | P44: =MIN($L44:$O44) -> 0 | Q44: =IF(V44>0,SUM(L44+M44+N44+O44-P44),"") ->  | R44: =IF(V44>1,SUM(Q44/(V44-1)),"") ->  | S44: =IF(V44>0,SUM(V44-1)*K44,"") ->  | T44: =IF(V44>1,SUM(U44/(V44-1)),"") ->  | U44: =IF(V44>0,SUM(Q44+S44),0) -> 0 | V44: 0
A45: 42 | D45: =$W$2 -> 220 | E45: =IF(C45<>"",SUM(D45-C45),"") ->  | F45: =$X$2/100 -> 0.8 | G45: =IF(C45<>"",TRUNC(E45*F45),"") ->  | H45: =IF(G45>$Y$2,$Y$2,G45) -> 65.00 | K45: =IF(C45<>"",H45,"") ->  | P45: =MIN($L45:$O45) -> 0 | Q45: =IF(V45>0,SUM(L45+M45+N45+O45-P45),"") ->  | R45: =IF(V45>1,SUM(Q45/(V45-1)),"") ->  | S45: =IF(V45>0,SUM(V45-1)*K45,"") ->  | T45: =IF(V45>1,SUM(U45/(V45-1)),"") ->  | U45: =IF(V45>0,SUM(Q45+S45),0) -> 0 | V45: 0
A46: 43 | D46: =$W$2 -> 220 | E46: =IF(C46<>"",SUM(D46-C46),"") ->  | F46: =$X$2/100 -> 0.8 | G46: =IF(C46<>"",TRUNC(E46*F46),"") ->  | H46: =IF(G46>$Y$2,$Y$2,G46) -> 65.00 | K46: =IF(C46<>"",H46,"") ->  | P46: =MIN($L46:$O46) -> 0 | Q46: =IF(V46>0,SUM(L46+M46+N46+O46-P46),"") ->  | R46: =IF(V46>1,SUM(Q46/(V46-1)),"") ->  | S46: =IF(V46>0,SUM(V46-1)*K46,"") ->  | T46: =IF(V46>1,SUM(U46/(V46-1)),"") ->  | U46: =IF(V46>0,SUM(Q46+S46),0) -> 0 | V46: 0
A47: 44 | D47: =$W$2 -> 220 | E47: =IF(C47<>"",SUM(D47-C47),"") ->  | F47: =$X$2/100 -> 0.8 | G47: =IF(C47<>"",TRUNC(E47*F47),"") ->  | H47: =IF(G47>$Y$2,$Y$2,G47) -> 65.00 | K47: =IF(C47<>"",H47,"") ->  | P47: =MIN($L47:$O47) -> 0 | Q47: =IF(V47>0,SUM(L47+M47+N47+O47-P47),"") ->  | R47: =IF(V47>1,SUM(Q47/(V47-1)),"") ->  | S47: =IF(V47>0,SUM(V47-1)*K47,"") ->  | T47: =IF(V47>1,SUM(U47/(V47-1)),"") ->  | U47: =IF(V47>0,SUM(Q47+S47),0) -> 0 | V47: 0
A48: 45 | D48: =$W$2 -> 220 | E48: =IF(C48<>"",SUM(D48-C48),"") ->  | F48: =$X$2/100 -> 0.8 | G48: =IF(C48<>"",TRUNC(E48*F48),"") ->  | H48: =IF(G48>$Y$2,$Y$2,G48) -> 65.00 | K48: =IF(C48<>"",H48,"") ->  | P48: =MIN($L48:$O48) -> 0 | Q48: =IF(V48>0,SUM(L48+M48+N48+O48-P48),"") ->  | R48: =IF(V48>1,SUM(Q48/(V48-1)),"") ->  | S48: =IF(V48>0,SUM(V48-1)*K48,"") ->  | T48: =IF(V48>1,SUM(U48/(V48-1)),"") ->  | U48: =IF(V48>0,SUM(Q48+S48),0) -> 0 | V48: 0
A49: 46 | D49: =$W$2 -> 220 | E49: =IF(C49<>"",SUM(D49-C49),"") ->  | F49: =$X$2/100 -> 0.8 | G49: =IF(C49<>"",TRUNC(E49*F49),"") ->  | H49: =IF(G49>$Y$2,$Y$2,G49) -> 65.00 | K49: =IF(C49<>"",H49,"") ->  | P49: =MIN($L49:$O49) -> 0 | Q49: =IF(V49>0,SUM(L49+M49+N49+O49-P49),"") ->  | R49: =IF(V49>1,SUM(Q49/(V49-1)),"") ->  | S49: =IF(V49>0,SUM(V49-1)*K49,"") ->  | T49: =IF(V49>1,SUM(U49/(V49-1)),"") ->  | U49: =IF(V49>0,SUM(Q49+S49),0) -> 0 | V49: 0
A50: 47 | D50: =$W$2 -> 220 | E50: =IF(C50<>"",SUM(D50-C50),"") ->  | F50: =$X$2/100 -> 0.8 | G50: =IF(C50<>"",TRUNC(E50*F50),"") ->  | H50: =IF(G50>$Y$2,$Y$2,G50) -> 65.00 | K50: =IF(C50<>"",H50,"") ->  | P50: =MIN($L50:$O50) -> 0 | Q50: =IF(V50>0,SUM(L50+M50+N50+O50-P50),"") ->  | R50: =IF(V50>1,SUM(Q50/(V50-1)),"") ->  | S50: =IF(V50>0,SUM(V50-1)*K50,"") ->  | T50: =IF(V50>1,SUM(U50/(V50-1)),"") ->  | U50: =IF(V50>0,SUM(Q50+S50),0) -> 0 | V50: 0
A51: 48 | D51: =$W$2 -> 220 | E51: =IF(C51<>"",SUM(D51-C51),"") ->  | F51: =$X$2/100 -> 0.8 | G51: =IF(C51<>"",TRUNC(E51*F51),"") ->  | H51: =IF(G51>$Y$2,$Y$2,G51) -> 65.00 | K51: =IF(C51<>"",H51,"") ->  | P51: =MIN($L51:$O51) -> 0 | Q51: =IF(V51>0,SUM(L51+M51+N51+O51-P51),"") ->  | R51: =IF(V51>1,SUM(Q51/(V51-1)),"") ->  | S51: =IF(V51>0,SUM(V51-1)*K51,"") ->  | T51: =IF(V51>1,SUM(U51/(V51-1)),"") ->  | U51: =IF(V51>0,SUM(Q51+S51),0) -> 0 | V51: 0
A52: 49 | D52: =$W$2 -> 220 | E52: =IF(C52<>"",SUM(D52-C52),"") ->  | F52: =$X$2/100 -> 0.8 | G52: =IF(C52<>"",TRUNC(E52*F52),"") ->  | H52: =IF(G52>$Y$2,$Y$2,G52) -> 65.00 | K52: =IF(C52<>"",H52,"") ->  | P52: =MIN($L52:$O52) -> 0 | Q52: =IF(V52>0,SUM(L52+M52+N52+O52-P52),"") ->  | R52: =IF(V52>1,SUM(Q52/(V52-1)),"") ->  | S52: =IF(V52>0,SUM(V52-1)*K52,"") ->  | T52: =IF(V52>1,SUM(U52/(V52-1)),"") ->  | U52: =IF(V52>0,SUM(Q52+S52),0) -> 0 | V52: 0
A53: 50 | D53: =$W$2 -> 220 | E53: =IF(C53<>"",SUM(D53-C53),"") ->  | F53: =$X$2/100 -> 0.8 | G53: =IF(C53<>"",TRUNC(E53*F53),"") ->  | H53: =IF(G53>$Y$2,$Y$2,G53) -> 65.00 | K53: =IF(C53<>"",H53,"") ->  | P53: =MIN($L53:$O53) -> 0 | Q53: =IF(V53>0,SUM(L53+M53+N53+O53-P53),"") ->  | R53: =IF(V53>1,SUM(Q53/(V53-1)),"") ->  | S53: =IF(V53>0,SUM(V53-1)*K53,"") ->  | T53: =IF(V53>1,SUM(U53/(V53-1)),"") ->  | U53: =IF(V53>0,SUM(Q53+S53),0) -> 0 | V53: 0
A54: 51 | D54: =$W$2 -> 220 | E54: =IF(C54<>"",SUM(D54-C54),"") ->  | F54: =$X$2/100 -> 0.8 | G54: =IF(C54<>"",TRUNC(E54*F54),"") ->  | H54: =IF(G54>$Y$2,$Y$2,G54) -> 65 | K54: =IF(C54<>"",H54,"") ->  | P54: =MIN($L54:$O54) -> 0 | Q54: =IF(V54>0,SUM(L54+M54+N54+O54-P54),"") ->  | R54: =IF(V54>1,SUM(Q54/(V54-1)),"") ->  | S54: =IF(V54>0,SUM(V54-1)*K54,"") ->  | T54: =IF(V54>1,SUM(U54/(V54-1)),"") ->  | U54: =IF(V54>0,SUM(Q54+S54),0) -> 0 | V54: 0
A55: 52 | D55: =$W$2 -> 220 | E55: =IF(C55<>"",SUM(D55-C55),"") ->  | F55: =$X$2/100 -> 0.8 | G55: =IF(C55<>"",TRUNC(E55*F55),"") ->  | H55: =IF(G55>$Y$2,$Y$2,G55) -> 65 | K55: =IF(C55<>"",H55,"") ->  | P55: =MIN($L55:$O55) -> 0 | Q55: =IF(V55>0,SUM(L55+M55+N55+O55-P55),"") ->  | R55: =IF(V55>1,SUM(Q55/(V55-1)),"") ->  | S55: =IF(V55>0,SUM(V55-1)*K55,"") ->  | T55: =IF(V55>1,SUM(U55/(V55-1)),"") ->  | U55: =IF(V55>0,SUM(Q55+S55),0) -> 0 | V55: 0
A56: 53 | D56: =$W$2 -> 220 | E56: =IF(C56<>"",SUM(D56-C56),"") ->  | F56: =$X$2/100 -> 0.8 | G56: =IF(C56<>"",TRUNC(E56*F56),"") ->  | H56: =IF(G56>$Y$2,$Y$2,G56) -> 65 | K56: =IF(C56<>"",H56,"") ->  | P56: =MIN($L56:$O56) -> 0 | Q56: =IF(V56>0,SUM(L56+M56+N56+O56-P56),"") ->  | R56: =IF(V56>1,SUM(Q56/(V56-1)),"") ->  | S56: =IF(V56>0,SUM(V56-1)*K56,"") ->  | T56: =IF(V56>1,SUM(U56/(V56-1)),"") ->  | U56: =IF(V56>0,SUM(Q56+S56),0) -> 0 | V56: 0
A57: 54 | D57: =$W$2 -> 220 | E57: =IF(C57<>"",SUM(D57-C57),"") ->  | F57: =$X$2/100 -> 0.8 | G57: =IF(C57<>"",TRUNC(E57*F57),"") ->  | H57: =IF(G57>$Y$2,$Y$2,G57) -> 65 | K57: =IF(C57<>"",H57,"") ->  | P57: =MIN($L57:$O57) -> 0 | Q57: =IF(V57>0,SUM(L57+M57+N57+O57-P57),"") ->  | R57: =IF(V57>1,SUM(Q57/(V57-1)),"") ->  | S57: =IF(V57>0,SUM(V57-1)*K57,"") ->  | T57: =IF(V57>1,SUM(U57/(V57-1)),"") ->  | U57: =IF(V57>0,SUM(Q57+S57),0) -> 0 | V57: 0
A58: 55 | D58: =$W$2 -> 220 | E58: =IF(C58<>"",SUM(D58-C58),"") ->  | F58: =$X$2/100 -> 0.8 | G58: =IF(C58<>"",TRUNC(E58*F58),"") ->  | H58: =IF(G58>$Y$2,$Y$2,G58) -> 65 | K58: =IF(C58<>"",H58,"") ->  | P58: =MIN($L58:$O58) -> 0 | Q58: =IF(V58>0,SUM(L58+M58+N58+O58-P58),"") ->  | R58: =IF(V58>1,SUM(Q58/(V58-1)),"") ->  | S58: =IF(V58>0,SUM(V58-1)*K58,"") ->  | T58: =IF(V58>1,SUM(U58/(V58-1)),"") ->  | U58: =IF(V58>0,SUM(Q58+S58),0) -> 0 | V58: 0
A59: 56 | D59: =$W$2 -> 220 | E59: =IF(C59<>"",SUM(D59-C59),"") ->  | F59: =$X$2/100 -> 0.8 | G59: =IF(C59<>"",TRUNC(E59*F59),"") ->  | H59: =IF(G59>$Y$2,$Y$2,G59) -> 65 | K59: =IF(C59<>"",H59,"") ->  | P59: =MIN($L59:$O59) -> 0 | Q59: =IF(V59>0,SUM(L59+M59+N59+O59-P59),"") ->  | R59: =IF(V59>1,SUM(Q59/(V59-1)),"") ->  | S59: =IF(V59>0,SUM(V59-1)*K59,"") ->  | T59: =IF(V59>1,SUM(U59/(V59-1)),"") ->  | U59: =IF(V59>0,SUM(Q59+S59),0) -> 0 | V59: 0
A60: 57 | D60: =$W$2 -> 220 | E60: =IF(C60<>"",SUM(D60-C60),"") ->  | F60: =$X$2/100 -> 0.8 | G60: =IF(C60<>"",TRUNC(E60*F60),"") ->  | H60: =IF(G60>$Y$2,$Y$2,G60) -> 65 | K60: =IF(C60<>"",H60,"") ->  | P60: =MIN($L60:$O60) -> 0 | Q60: =IF(V60>0,SUM(L60+M60+N60+O60-P60),"") ->  | R60: =IF(V60>1,SUM(Q60/(V60-1)),"") ->  | S60: =IF(V60>0,SUM(V60-1)*K60,"") ->  | T60: =IF(V60>1,SUM(U60/(V60-1)),"") ->  | U60: =IF(V60>0,SUM(Q60+S60),0) -> 0 | V60: 0
A61: 58 | D61: =$W$2 -> 220 | E61: =IF(C61<>"",SUM(D61-C61),"") ->  | F61: =$X$2/100 -> 0.8 | G61: =IF(C61<>"",TRUNC(E61*F61),"") ->  | H61: =IF(G61>$Y$2,$Y$2,G61) -> 65 | K61: =IF(C61<>"",H61,"") ->  | P61: =MIN($L61:$O61) -> 0 | Q61: =IF(V61>0,SUM(L61+M61+N61+O61-P61),"") ->  | R61: =IF(V61>1,SUM(Q61/(V61-1)),"") ->  | S61: =IF(V61>0,SUM(V61-1)*K61,"") ->  | T61: =IF(V61>1,SUM(U61/(V61-1)),"") ->  | U61: =IF(V61>0,SUM(Q61+S61),0) -> 0 | V61: 0
A62: 59 | D62: =$W$2 -> 220 | E62: =IF(C62<>"",SUM(D62-C62),"") ->  | F62: =$X$2/100 -> 0.8 | G62: =IF(C62<>"",TRUNC(E62*F62),"") ->  | H62: =IF(G62>$Y$2,$Y$2,G62) -> 65 | K62: =IF(C62<>"",H62,"") ->  | P62: =MIN($L62:$O62) -> 0 | Q62: =IF(V62>0,SUM(L62+M62+N62+O62-P62),"") ->  | R62: =IF(V62>1,SUM(Q62/(V62-1)),"") ->  | S62: =IF(V62>0,SUM(V62-1)*K62,"") ->  | T62: =IF(V62>1,SUM(U62/(V62-1)),"") ->  | U62: =IF(V62>0,SUM(Q62+S62),0) -> 0 | V62: 0
A63: 60 | D63: =$W$2 -> 220 | E63: =IF(C63<>"",SUM(D63-C63),"") ->  | F63: =$X$2/100 -> 0.8 | G63: =IF(C63<>"",TRUNC(E63*F63),"") ->  | H63: =IF(G63>$Y$2,$Y$2,G63) -> 65 | K63: =IF(C63<>"",H63,"") ->  | P63: =MIN($L63:$O63) -> 0 | Q63: =IF(V63>0,SUM(L63+M63+N63+O63-P63),"") ->  | R63: =IF(V63>1,SUM(Q63/(V63-1)),"") ->  | S63: =IF(V63>0,SUM(V63-1)*K63,"") ->  | T63: =IF(V63>1,SUM(U63/(V63-1)),"") ->  | U63: =IF(V63>0,SUM(Q63+S63),0) -> 0 | V63: 0
A64: 61 | D64: =$W$2 -> 220 | E64: =IF(C64<>"",SUM(D64-C64),"") ->  | F64: =$X$2/100 -> 0.8 | G64: =IF(C64<>"",TRUNC(E64*F64),"") ->  | H64: =IF(G64>$Y$2,$Y$2,G64) -> 65.00 | K64: =IF(C64<>"",H64,"") ->  | P64: =MIN($L64:$O64) -> 0 | Q64: =IF(V64>0,SUM(L64+M64+N64+O64-P64),"") ->  | R64: =IF(V64>1,SUM(Q64/(V64-1)),"") ->  | S64: =IF(V64>0,SUM(V64-1)*K64,"") ->  | T64: =IF(V64>1,SUM(U64/(V64-1)),"") ->  | U64: =IF(V64>0,SUM(Q64+S64),0) -> 0 | V64: 0
A65: 62 | D65: =$W$2 -> 220 | E65: =IF(C65<>"",SUM(D65-C65),"") ->  | F65: =$X$2/100 -> 0.8 | G65: =IF(C65<>"",TRUNC(E65*F65),"") ->  | H65: =IF(G65>$Y$2,$Y$2,G65) -> 65.00 | K65: =IF(C65<>"",H65,"") ->  | P65: =MIN($L65:$O65) -> 0 | Q65: =IF(V65>0,SUM(L65+M65+N65+O65-P65),"") ->  | R65: =IF(V65>1,SUM(Q65/(V65-1)),"") ->  | S65: =IF(V65>0,SUM(V65-1)*K65,"") ->  | T65: =IF(V65>1,SUM(U65/(V65-1)),"") ->  | U65: =IF(V65>0,SUM(Q65+S65),0) -> 0 | V65: 0
A66: 63 | D66: =$W$2 -> 220 | E66: =IF(C66<>"",SUM(D66-C66),"") ->  | F66: =$X$2/100 -> 0.8 | G66: =IF(C66<>"",TRUNC(E66*F66),"") ->  | H66: =IF(G66>$Y$2,$Y$2,G66) -> 65.00 | K66: =IF(C66<>"",H66,"") ->  | P66: =MIN($L66:$O66) -> 0 | Q66: =IF(V66>0,SUM(L66+M66+N66+O66-P66),"") ->  | R66: =IF(V66>1,SUM(Q66/(V66-1)),"") ->  | S66: =IF(V66>0,SUM(V66-1)*K66,"") ->  | T66: =IF(V66>1,SUM(U66/(V66-1)),"") ->  | U66: =IF(V66>0,SUM(Q66+S66),0) -> 0 | V66: 0
A67: 64 | D67: =$W$2 -> 220 | E67: =IF(C67<>"",SUM(D67-C67),"") ->  | F67: =$X$2/100 -> 0.8 | G67: =IF(C67<>"",TRUNC(E67*F67),"") ->  | H67: =IF(G67>$Y$2,$Y$2,G67) -> 65.00 | K67: =IF(C67<>"",H67,"") ->  | P67: =MIN($L67:$O67) -> 0 | Q67: =IF(V67>0,SUM(L67+M67+N67+O67-P67),"") ->  | R67: =IF(V67>1,SUM(Q67/(V67-1)),"") ->  | S67: =IF(V67>0,SUM(V67-1)*K67,"") ->  | T67: =IF(V67>1,SUM(U67/(V67-1)),"") ->  | U67: =IF(V67>0,SUM(Q67+S67),0) -> 0 | V67: 0
A68: 65 | D68: =$W$2 -> 220 | E68: =IF(C68<>"",SUM(D68-C68),"") ->  | F68: =$X$2/100 -> 0.8 | G68: =IF(C68<>"",TRUNC(E68*F68),"") ->  | H68: =IF(G68>$Y$2,$Y$2,G68) -> 65.00 | K68: =IF(C68<>"",H68,"") ->  | P68: =MIN($L68:$O68) -> 0 | Q68: =IF(V68>0,SUM(L68+M68+N68+O68-P68),"") ->  | R68: =IF(V68>1,SUM(Q68/(V68-1)),"") ->  | S68: =IF(V68>0,SUM(V68-1)*K68,"") ->  | T68: =IF(V68>1,SUM(U68/(V68-1)),"") ->  | U68: =IF(V68>0,SUM(Q68+S68),0) -> 0 | V68: 0
A69: 66 | D69: =$W$2 -> 220 | E69: =IF(C69<>"",SUM(D69-C69),"") ->  | F69: =$X$2/100 -> 0.8 | G69: =IF(C69<>"",TRUNC(E69*F69),"") ->  | H69: =IF(G69>$Y$2,$Y$2,G69) -> 65.00 | K69: =IF(C69<>"",H69,"") ->  | P69: =MIN($L69:$O69) -> 0 | Q69: =IF(V69>0,SUM(L69+M69+N69+O69-P69),"") ->  | R69: =IF(V69>1,SUM(Q69/(V69-1)),"") ->  | S69: =IF(V69>0,SUM(V69-1)*K69,"") ->  | T69: =IF(V69>1,SUM(U69/(V69-1)),"") ->  | U69: =IF(V69>0,SUM(Q69+S69),0) -> 0 | V69: =COUNTA(L69:O69) -> 0
A70: 67 | D70: =$W$2 -> 220 | E70: =IF(C70<>"",SUM(D70-C70),"") ->  | F70: =$X$2/100 -> 0.8 | G70: =IF(C70<>"",TRUNC(E70*F70),"") ->  | H70: =IF(G70>$Y$2,$Y$2,G70) -> 65.00 | K70: =IF(C70<>"",H70,"") ->  | P70: =MIN($L70:$O70) -> 0 | Q70: =IF(V70>0,SUM(L70+M70+N70+O70-P70),"") ->  | R70: =IF(V70>1,SUM(Q70/(V70-1)),"") ->  | S70: =IF(V70>0,SUM(V70-1)*K70,"") ->  | T70: =IF(V70>1,SUM(U70/(V70-1)),"") ->  | U70: =IF(V70>0,SUM(Q70+S70),0) -> 0 | V70: 0
A71: 68 | D71: =$W$2 -> 220 | E71: =IF(C71<>"",SUM(D71-C71),"") ->  | F71: =$X$2/100 -> 0.8 | G71: =IF(C71<>"",TRUNC(E71*F71),"") ->  | H71: =IF(G71>$Y$2,$Y$2,G71) -> 65.00 | K71: =IF(C71<>"",H71,"") ->  | P71: =MIN($L71:$O71) -> 0 | Q71: =IF(V71>0,SUM(L71+M71+N71+O71-P71),"") ->  | R71: =IF(V71>1,SUM(Q71/(V71-1)),"") ->  | S71: =IF(V71>0,SUM(V71-1)*K71,"") ->  | T71: =IF(V71>1,SUM(U71/(V71-1)),"") ->  | U71: =IF(V71>0,SUM(Q71+S71),0) -> 0 | V71: 0
A72: 69 | D72: =$W$2 -> 220 | E72: =IF(C72<>"",SUM(D72-C72),"") ->  | F72: =$X$2/100 -> 0.8 | G72: =IF(C72<>"",TRUNC(E72*F72),"") ->  | H72: =IF(G72>$Y$2,$Y$2,G72) -> 65.00 | K72: =IF(C72<>"",H72,"") ->  | P72: =MIN($L72:$O72) -> 0 | Q72: =IF(V72>0,SUM(L72+M72+N72+O72-P72),"") ->  | R72: =IF(V72>1,SUM(Q72/(V72-1)),"") ->  | S72: =IF(V72>0,SUM(V72-1)*K72,"") ->  | T72: =IF(V72>1,SUM(U72/(V72-1)),"") ->  | U72: =IF(V72>0,SUM(Q72+S72),0) -> 0 | V72: 0
A73: 70 | D73: =$W$2 -> 220 | E73: =IF(C73<>"",SUM(D73-C73),"") ->  | F73: =$X$2/100 -> 0.8 | G73: =IF(C73<>"",TRUNC(E73*F73),"") ->  | H73: =IF(G73>$Y$2,$Y$2,G73) -> 65.00 | K73: =IF(C73<>"",H73,"") ->  | P73: =MIN($L73:$O73) -> 0 | Q73: =IF(V73>0,SUM(L73+M73+N73+O73-P73),"") ->  | R73: =IF(V73>1,SUM(Q73/(V73-1)),"") ->  | S73: =IF(V73>0,SUM(V73-1)*K73,"") ->  | T73: =IF(V73>1,SUM(U73/(V73-1)),"") ->  | U73: =IF(V73>0,SUM(Q73+S73),0) -> 0 | V73: 0
A74: 71 | D74: =$W$2 -> 220 | E74: =IF(C74<>"",SUM(D74-C74),"") ->  | F74: =$X$2/100 -> 0.8 | G74: =IF(C74<>"",TRUNC(E74*F74),"") ->  | H74: =IF(G74>$Y$2,$Y$2,G74) -> 65.00 | K74: =IF(C74<>"",H74,"") ->  | P74: =MIN($L74:$O74) -> 0 | Q74: =IF(V74>0,SUM(L74+M74+N74+O74-P74),"") ->  | R74: =IF(V74>1,SUM(Q74/(V74-1)),"") ->  | S74: =IF(V74>0,SUM(V74-1)*K74,"") ->  | T74: =IF(V74>1,SUM(U74/(V74-1)),"") ->  | U74: =IF(V74>0,SUM(Q74+S74),0) -> 0 | V74: 0
A75: 72 | D75: =$W$2 -> 220 | E75: =IF(C75<>"",SUM(D75-C75),"") ->  | F75: =$X$2/100 -> 0.8 | G75: =IF(C75<>"",TRUNC(E75*F75),"") ->  | H75: =IF(G75>$Y$2,$Y$2,G75) -> 65.00 | K75: =IF(C75<>"",H75,"") ->  | P75: =MIN($L75:$O75) -> 0 | Q75: =IF(V75>0,SUM(L75+M75+N75+O75-P75),"") ->  | R75: =IF(V75>1,SUM(Q75/(V75-1)),"") ->  | S75: =IF(V75>0,SUM(V75-1)*K75,"") ->  | T75: =IF(V75>1,SUM(U75/(V75-1)),"") ->  | U75: =IF(V75>0,SUM(Q75+S75),0) -> 0 | V75: 0
A76: 73 | D76: =$W$2 -> 220 | E76: =IF(C76<>"",SUM(D76-C76),"") ->  | F76: =$X$2/100 -> 0.8 | G76: =IF(C76<>"",TRUNC(E76*F76),"") ->  | H76: =IF(G76>$Y$2,$Y$2,G76) -> 65.00 | K76: =IF(C76<>"",H76,"") ->  | P76: =MIN($L76:$O76) -> 0 | Q76: =IF(V76>0,SUM(L76+M76+N76+O76-P76),"") ->  | R76: =IF(V76>1,SUM(Q76/(V76-1)),"") ->  | S76: =IF(V76>0,SUM(V76-1)*K76,"") ->  | T76: =IF(V76>1,SUM(U76/(V76-1)),"") ->  | U76: =IF(V76>0,SUM(Q76+S76),0) -> 0 | V76: 0
A77: 74 | D77: =$W$2 -> 220 | E77: =IF(C77<>"",SUM(D77-C77),"") ->  | F77: =$X$2/100 -> 0.8 | G77: =IF(C77<>"",TRUNC(E77*F77),"") ->  | H77: =IF(G77>$Y$2,$Y$2,G77) -> 65.00 | K77: =IF(C77<>"",H77,"") ->  | P77: =MIN($L77:$O77) -> 0 | Q77: =IF(V77>0,SUM(L77+M77+N77+O77-P77),"") ->  | R77: =IF(V77>1,SUM(Q77/(V77-1)),"") ->  | S77: =IF(V77>0,SUM(V77-1)*K77,"") ->  | T77: =IF(V77>1,SUM(U77/(V77-1)),"") ->  | U77: =IF(V77>0,SUM(Q77+S77),0) -> 0 | V77: 0
A78: 75 | D78: =$W$2 -> 220 | E78: =IF(C78<>"",SUM(D78-C78),"") ->  | F78: =$X$2/100 -> 0.8 | G78: =IF(C78<>"",TRUNC(E78*F78),"") ->  | H78: =IF(G78>$Y$2,$Y$2,G78) -> 65.00 | K78: =IF(C78<>"",H78,"") ->  | P78: =MIN($L78:$O78) -> 0 | Q78: =IF(V78>0,SUM(L78+M78+N78+O78-P78),"") ->  | R78: =IF(V78>1,SUM(Q78/(V78-1)),"") ->  | S78: =IF(V78>0,SUM(V78-1)*K78,"") ->  | T78: =IF(V78>1,SUM(U78/(V78-1)),"") ->  | U78: =IF(V78>0,SUM(Q78+S78),0) -> 0 | V78: 0
A79: 76 | D79: =$W$2 -> 220 | E79: =IF(C79<>"",SUM(D79-C79),"") ->  | F79: =$X$2/100 -> 0.8 | G79: =IF(C79<>"",TRUNC(E79*F79),"") ->  | H79: =IF(G79>$Y$2,$Y$2,G79) -> 65.00 | K79: =IF(C79<>"",H79,"") ->  | P79: =MIN($L79:$O79) -> 0 | Q79: =IF(V79>0,SUM(L79+M79+N79+O79-P79),"") ->  | R79: =IF(V79>1,SUM(Q79/(V79-1)),"") ->  | S79: =IF(V79>0,SUM(V79-1)*K79,"") ->  | T79: =IF(V79>1,SUM(U79/(V79-1)),"") ->  | U79: =IF(V79>0,SUM(Q79+S79),0) -> 0 | V79: 0
A80: 77 | D80: =$W$2 -> 220 | E80: =IF(C80<>"",SUM(D80-C80),"") ->  | F80: =$X$2/100 -> 0.8 | G80: =IF(C80<>"",TRUNC(E80*F80),"") ->  | H80: =IF(G80>$Y$2,$Y$2,G80) -> 65.00 | K80: =IF(C80<>"",H80,"") ->  | P80: =MIN($L80:$O80) -> 0 | Q80: =IF(V80>0,SUM(L80+M80+N80+O80-P80),"") ->  | R80: =IF(V80>1,SUM(Q80/(V80-1)),"") ->  | S80: =IF(V80>0,SUM(V80-1)*K80,"") ->  | T80: =IF(V80>1,SUM(U80/(V80-1)),"") ->  | U80: =IF(V80>0,SUM(Q80+S80),0) -> 0 | V80: 0
A81: 78 | D81: =$W$2 -> 220 | E81: =IF(C81<>"",SUM(D81-C81),"") ->  | F81: =$X$2/100 -> 0.8 | G81: =IF(C81<>"",TRUNC(E81*F81),"") ->  | H81: =IF(G81>$Y$2,$Y$2,G81) -> 65.00 | K81: =IF(C81<>"",H81,"") ->  | P81: =MIN($L81:$O81) -> 0 | Q81: =IF(V81>0,SUM(L81+M81+N81+O81-P81),"") ->  | R81: =IF(V81>1,SUM(Q81/(V81-1)),"") ->  | S81: =IF(V81>0,SUM(V81-1)*K81,"") ->  | T81: =IF(V81>1,SUM(U81/(V81-1)),"") ->  | U81: =IF(V81>0,SUM(Q81+S81),0) -> 0 | V81: 0
A82: 79 | D82: =$W$2 -> 220 | E82: =IF(C82<>"",SUM(D82-C82),"") ->  | F82: =$X$2/100 -> 0.8 | G82: =IF(C82<>"",TRUNC(E82*F82),"") ->  | H82: =IF(G82>$Y$2,$Y$2,G82) -> 65.00 | K82: =IF(C82<>"",H82,"") ->  | P82: =MIN($L82:$O82) -> 0 | Q82: =IF(V82>0,SUM(L82+M82+N82+O82-P82),"") ->  | R82: =IF(V82>1,SUM(Q82/(V82-1)),"") ->  | S82: =IF(V82>0,SUM(V82-1)*K82,"") ->  | T82: =IF(V82>1,SUM(U82/(V82-1)),"") ->  | U82: =IF(V82>0,SUM(Q82+S82),0) -> 0 | V82: 0
A83: 80 | D83: =$W$2 -> 220 | E83: =IF(C83<>"",SUM(D83-C83),"") ->  | F83: =$X$2/100 -> 0.8 | G83: =IF(C83<>"",TRUNC(E83*F83),"") ->  | H83: =IF(G83>$Y$2,$Y$2,G83) -> 65.00 | K83: =IF(C83<>"",H83,"") ->  | P83: =MIN($L83:$O83) -> 0 | Q83: =IF(V83>0,SUM(L83+M83+N83+O83-P83),"") ->  | R83: =IF(V83>1,SUM(Q83/(V83-1)),"") ->  | S83: =IF(V83>0,SUM(V83-1)*K83,"") ->  | T83: =IF(V83>1,SUM(U83/(V83-1)),"") ->  | U83: =IF(V83>0,SUM(Q83+S83),0) -> 0 | V83: 0
A84: 81 | D84: =$W$2 -> 220 | E84: =IF(C84<>"",SUM(D84-C84),"") ->  | F84: =$X$2/100 -> 0.8 | G84: =IF(C84<>"",TRUNC(E84*F84),"") ->  | H84: =IF(G84>$Y$2,$Y$2,G84) -> 65.00 | K84: =IF(C84<>"",H84,"") ->  | P84: =MIN($L84:$O84) -> 0 | Q84: =IF(V84>0,SUM(L84+M84+N84+O84-P84),"") ->  | R84: =IF(V84>1,SUM(Q84/(V84-1)),"") ->  | S84: =IF(V84>0,SUM(V84-1)*K84,"") ->  | T84: =IF(V84>1,SUM(U84/(V84-1)),"") ->  | U84: =IF(V84>0,SUM(Q84+S84),0) -> 0 | V84: 0
A85: 82 | D85: =$W$2 -> 220 | E85: =IF(C85<>"",SUM(D85-C85),"") ->  | F85: =$X$2/100 -> 0.8 | G85: =IF(C85<>"",TRUNC(E85*F85),"") ->  | H85: =IF(G85>$Y$2,$Y$2,G85) -> 65.00 | K85: =IF(C85<>"",H85,"") ->  | P85: =MIN($L85:$O85) -> 0 | Q85: =IF(V85>0,SUM(L85+M85+N85+O85-P85),"") ->  | R85: =IF(V85>1,SUM(Q85/(V85-1)),"") ->  | S85: =IF(V85>0,SUM(V85-1)*K85,"") ->  | T85: =IF(V85>1,SUM(U85/(V85-1)),"") ->  | U85: =IF(V85>0,SUM(Q85+S85),0) -> 0 | V85: 0
A86: 83 | D86: =$W$2 -> 220 | E86: =IF(C86<>"",SUM(D86-C86),"") ->  | F86: =$X$2/100 -> 0.8 | G86: =IF(C86<>"",TRUNC(E86*F86),"") ->  | H86: =IF(G86>$Y$2,$Y$2,G86) -> 65.00 | K86: =IF(C86<>"",H86,"") ->  | P86: =MIN($L86:$O86) -> 0 | Q86: =IF(V86>0,SUM(L86+M86+N86+O86-P86),"") ->  | R86: =IF(V86>1,SUM(Q86/(V86-1)),"") ->  | S86: =IF(V86>0,SUM(V86-1)*K86,"") ->  | T86: =IF(V86>1,SUM(U86/(V86-1)),"") ->  | U86: =IF(V86>0,SUM(Q86+S86),0) -> 0 | V86: 0
A87: 84 | D87: =$W$2 -> 220 | E87: =IF(C87<>"",SUM(D87-C87),"") ->  | F87: =$X$2/100 -> 0.8 | G87: =IF(C87<>"",TRUNC(E87*F87),"") ->  | H87: =IF(G87>$Y$2,$Y$2,G87) -> 65.00 | K87: =IF(C87<>"",H87,"") ->  | P87: =MIN($L87:$O87) -> 0 | Q87: =IF(V87>0,SUM(L87+M87+N87+O87-P87),"") ->  | R87: =IF(V87>1,SUM(Q87/(V87-1)),"") ->  | S87: =IF(V87>0,SUM(V87-1)*K87,"") ->  | T87: =IF(V87>1,SUM(U87/(V87-1)),"") ->  | U87: =IF(V87>0,SUM(Q87+S87),0) -> 0 | V87: 0
A88: 85 | D88: =$W$2 -> 220 | E88: =IF(C88<>"",SUM(D88-C88),"") ->  | F88: =$X$2/100 -> 0.8 | G88: =IF(C88<>"",TRUNC(E88*F88),"") ->  | H88: =IF(G88>$Y$2,$Y$2,G88) -> 65.00 | K88: =IF(C88<>"",H88,"") ->  | P88: =MIN($L88:$O88) -> 0 | Q88: =IF(V88>0,SUM(L88+M88+N88+O88-P88),"") ->  | R88: =IF(V88>1,SUM(Q88/(V88-1)),"") ->  | S88: =IF(V88>0,SUM(V88-1)*K88,"") ->  | T88: =IF(V88>1,SUM(U88/(V88-1)),"") ->  | U88: =IF(V88>0,SUM(Q88+S88),0) -> 0 | V88: 0
A89: 86 | D89: =$W$2 -> 220 | E89: =IF(C89<>"",SUM(D89-C89),"") ->  | F89: =$X$2/100 -> 0.8 | G89: =IF(C89<>"",TRUNC(E89*F89),"") ->  | H89: =IF(G89>$Y$2,$Y$2,G89) -> 65.00 | K89: =IF(C89<>"",H89,"") ->  | P89: =MIN($L89:$O89) -> 0 | Q89: =IF(V89>0,SUM(L89+M89+N89+O89-P89),"") ->  | R89: =IF(V89>1,SUM(Q89/(V89-1)),"") ->  | S89: =IF(V89>0,SUM(V89-1)*K89,"") ->  | T89: =IF(V89>1,SUM(U89/(V89-1)),"") ->  | U89: =IF(V89>0,SUM(Q89+S89),0) -> 0 | V89: 0
A90: 87 | D90: =$W$2 -> 220 | E90: =IF(C90<>"",SUM(D90-C90),"") ->  | F90: =$X$2/100 -> 0.8 | G90: =IF(C90<>"",TRUNC(E90*F90),"") ->  | H90: =IF(G90>$Y$2,$Y$2,G90) -> 65.00 | K90: =IF(C90<>"",H90,"") ->  | P90: =MIN($L90:$O90) -> 0 | Q90: =IF(V90>0,SUM(L90+M90+N90+O90-P90),"") ->  | R90: =IF(V90>1,SUM(Q90/(V90-1)),"") ->  | S90: =IF(V90>0,SUM(V90-1)*K90,"") ->  | T90: =IF(V90>1,SUM(U90/(V90-1)),"") ->  | U90: =IF(V90>0,SUM(Q90+S90),0) -> 0 | V90: 0
A91: 88 | D91: =$W$2 -> 220 | E91: =IF(C91<>"",SUM(D91-C91),"") ->  | F91: =$X$2/100 -> 0.8 | G91: =IF(C91<>"",TRUNC(E91*F91),"") ->  | H91: =IF(G91>$Y$2,$Y$2,G91) -> 65.00 | K91: =IF(C91<>"",H91,"") ->  | P91: =MIN($L91:$O91) -> 0 | Q91: =IF(V91>0,SUM(L91+M91+N91+O91-P91),"") ->  | R91: =IF(V91>1,SUM(Q91/(V91-1)),"") ->  | S91: =IF(V91>0,SUM(V91-1)*K91,"") ->  | T91: =IF(V91>1,SUM(U91/(V91-1)),"") ->  | U91: =IF(V91>0,SUM(Q91+S91),0) -> 0 | V91: 0
A92: 89 | D92: =$W$2 -> 220 | E92: =IF(C92<>"",SUM(D92-C92),"") ->  | F92: =$X$2/100 -> 0.8 | G92: =IF(C92<>"",TRUNC(E92*F92),"") ->  | H92: =IF(G92>$Y$2,$Y$2,G92) -> 65.00 | K92: =IF(C92<>"",H92,"") ->  | P92: =MIN($L92:$O92) -> 0 | Q92: =IF(V92>0,SUM(L92+M92+N92+O92-P92),"") ->  | R92: =IF(V92>1,SUM(Q92/(V92-1)),"") ->  | S92: =IF(V92>0,SUM(V92-1)*K92,"") ->  | T92: =IF(V92>1,SUM(U92/(V92-1)),"") ->  | U92: =IF(V92>0,SUM(Q92+S92),0) -> 0 | V92: 0
A93: 90 | D93: =$W$2 -> 220 | E93: =IF(C93<>"",SUM(D93-C93),"") ->  | F93: =$X$2/100 -> 0.8 | G93: =IF(C93<>"",TRUNC(E93*F93),"") ->  | H93: =IF(G93>$Y$2,$Y$2,G93) -> 65.00 | K93: =IF(C93<>"",H93,"") ->  | P93: =MIN($L93:$O93) -> 0 | Q93: =IF(V93>0,SUM(L93+M93+N93+O93-P93),"") ->  | R93: =IF(V93>1,SUM(Q93/(V93-1)),"") ->  | S93: =IF(V93>0,SUM(V93-1)*K93,"") ->  | T93: =IF(V93>1,SUM(U93/(V93-1)),"") ->  | U93: =IF(V93>0,SUM(Q93+S93),0) -> 0 | V93: 0
A94: 91 | D94: =$W$2 -> 220 | E94: =IF(C94<>"",SUM(D94-C94),"") ->  | F94: =$X$2/100 -> 0.8 | G94: =IF(C94<>"",TRUNC(E94*F94),"") ->  | H94: =IF(G94>$Y$2,$Y$2,G94) -> 65.00 | K94: =IF(C94<>"",H94,"") ->  | P94: =MIN($L94:$O94) -> 0 | Q94: =IF(V94>0,SUM(L94+M94+N94+O94-P94),"") ->  | R94: =IF(V94>1,SUM(Q94/(V94-1)),"") ->  | S94: =IF(V94>0,SUM(V94-1)*K94,"") ->  | T94: =IF(V94>1,SUM(U94/(V94-1)),"") ->  | U94: =IF(V94>0,SUM(Q94+S94),0) -> 0 | V94: 0
A95: 92 | D95: =$W$2 -> 220 | E95: =IF(C95<>"",SUM(D95-C95),"") ->  | F95: =$X$2/100 -> 0.8 | G95: =IF(C95<>"",TRUNC(E95*F95),"") ->  | H95: =IF(G95>$Y$2,$Y$2,G95) -> 65.00 | K95: =IF(C95<>"",H95,"") ->  | P95: =MIN($L95:$O95) -> 0 | Q95: =IF(V95>0,SUM(L95+M95+N95+O95-P95),"") ->  | R95: =IF(V95>1,SUM(Q95/(V95-1)),"") ->  | S95: =IF(V95>0,SUM(V95-1)*K95,"") ->  | T95: =IF(V95>1,SUM(U95/(V95-1)),"") ->  | U95: =IF(V95>0,SUM(Q95+S95),0) -> 0 | V95: 0
A96: 93 | D96: =$W$2 -> 220 | E96: =IF(C96<>"",SUM(D96-C96),"") ->  | F96: =$X$2/100 -> 0.8 | G96: =IF(C96<>"",TRUNC(E96*F96),"") ->  | H96: =IF(G96>$Y$2,$Y$2,G96) -> 65.00 | K96: =IF(C96<>"",H96,"") ->  | P96: =MIN($L96:$O96) -> 0 | Q96: =IF(V96>0,SUM(L96+M96+N96+O96-P96),"") ->  | R96: =IF(V96>1,SUM(Q96/(V96-1)),"") ->  | S96: =IF(V96>0,SUM(V96-1)*K96,"") ->  | T96: =IF(V96>1,SUM(U96/(V96-1)),"") ->  | U96: =IF(V96>0,SUM(Q96+S96),0) -> 0 | V96: 0
A97: 94 | D97: =$W$2 -> 220 | E97: =IF(C97<>"",SUM(D97-C97),"") ->  | F97: =$X$2/100 -> 0.8 | G97: =IF(C97<>"",TRUNC(E97*F97),"") ->  | H97: =IF(G97>$Y$2,$Y$2,G97) -> 65.00 | K97: =IF(C97<>"",H97,"") ->  | P97: =MIN($L97:$O97) -> 0 | Q97: =IF(V97>0,SUM(L97+M97+N97+O97-P97),"") ->  | R97: =IF(V97>1,SUM(Q97/(V97-1)),"") ->  | S97: =IF(V97>0,SUM(V97-1)*K97,"") ->  | T97: =IF(V97>1,SUM(U97/(V97-1)),"") ->  | U97: =IF(V97>0,SUM(Q97+S97),0) -> 0 | V97: 0
A98: 95 | D98: =$W$2 -> 220 | E98: =IF(C98<>"",SUM(D98-C98),"") ->  | F98: =$X$2/100 -> 0.8 | G98: =IF(C98<>"",TRUNC(E98*F98),"") ->  | H98: =IF(G98>$Y$2,$Y$2,G98) -> 65.00 | K98: =IF(C98<>"",H98,"") ->  | P98: =MIN($L98:$O98) -> 0 | Q98: =IF(V98>0,SUM(L98+M98+N98+O98-P98),"") ->  | R98: =IF(V98>1,SUM(Q98/(V98-1)),"") ->  | S98: =IF(V98>0,SUM(V98-1)*K98,"") ->  | T98: =IF(V98>1,SUM(U98/(V98-1)),"") ->  | U98: =IF(V98>0,SUM(Q98+S98),0) -> 0 | V98: 0
A99: =A98+1 -> 96 | D99: =$W$2 -> 220 | E99: =IF(C99<>"",SUM(D99-C99),"") ->  | F99: =$X$2/100 -> 0.8 | G99: =IF(C99<>"",TRUNC(E99*F99),"") ->  | H99: =IF(G99>$Y$2,$Y$2,G99) -> 65.00 | K99: =IF(C99<>"",H99,"") ->  | P99: =MIN($L99:$O99) -> 0 | Q99: =IF(V99>0,SUM(L99+M99+N99+O99-P99),"") ->  | R99: =IF(V99>1,SUM(Q99/(V99-1)),"") ->  | S99: =IF(V99>0,SUM(V99-1)*K99,"") ->  | T99: =IF(V99>1,SUM(U99/(V99-1)),"") ->  | U99: =IF(V99>0,SUM(Q99+S99),0) -> 0 | V99: 0
A100: 97 | D100: =$W$2 -> 220 | E100: =IF(C100<>"",SUM(D100-C100),"") ->  | F100: =$X$2/100 -> 0.8 | G100: =IF(C100<>"",TRUNC(E100*F100),"") ->  | H100: =IF(G100>$Y$2,$Y$2,G100) -> 65.00 | K100: =IF(C100<>"",H100,"") ->  | P100: =MIN($L100:$O100) -> 0 | Q100: =IF(V100>0,SUM(L100+M100+N100+O100-P100),"") ->  | R100: =IF(V100>1,SUM(Q100/(V100-1)),"") ->  | S100: =IF(V100>0,SUM(V100-1)*K100,"") ->  | T100: =IF(V100>1,SUM(U100/(V100-1)),"") ->  | U100: =IF(V100>0,SUM(Q100+S100),0) -> 0 | V100: 0
A101: 98 | D101: =$W$2 -> 220 | E101: =IF(C101<>"",SUM(D101-C101),"") ->  | F101: =$X$2/100 -> 0.8 | G101: =IF(C101<>"",TRUNC(E101*F101),"") ->  | H101: =IF(G101>$Y$2,$Y$2,G101) -> 65.00 | K101: =IF(C101<>"",H101,"") ->  | P101: =MIN($L101:$O101) -> 0 | Q101: =IF(V101>0,SUM(L101+M101+N101+O101-P101),"") ->  | R101: =IF(V101>1,SUM(Q101/(V101-1)),"") ->  | S101: =IF(V101>0,SUM(V101-1)*K101,"") ->  | T101: =IF(V101>1,SUM(U101/(V101-1)),"") ->  | U101: =IF(V101>0,SUM(Q101+S101),0) -> 0 | V101: 0
A102: 99 | D102: =$W$2 -> 220 | E102: =IF(C102<>"",SUM(D102-C102),"") ->  | F102: =$X$2/100 -> 0.8 | G102: =IF(C102<>"",TRUNC(E102*F102),"") ->  | H102: =IF(G102>$Y$2,$Y$2,G102) -> 65.00 | K102: =IF(C102<>"",H102,"") ->  | P102: =MIN($L102:$O102) -> 0 | Q102: =IF(V102>0,SUM(L102+M102+N102+O102-P102),"") ->  | R102: =IF(V102>1,SUM(Q102/(V102-1)),"") ->  | S102: =IF(V102>0,SUM(V102-1)*K102,"") ->  | T102: =IF(V102>1,SUM(U102/(V102-1)),"") ->  | U102: =IF(V102>0,SUM(Q102+S102),0) -> 0 | V102: 0
A103: 100 | D103: =$W$2 -> 220 | E103: =IF(C103<>"",SUM(D103-C103),"") ->  | F103: =$X$2/100 -> 0.8 | G103: =IF(C103<>"",TRUNC(E103*F103),"") ->  | H103: =IF(G103>$Y$2,$Y$2,G103) -> 65.00 | K103: =IF(C103<>"",H103,"") ->  | P103: =MIN($L103:$O103) -> 0 | Q103: =IF(V103>0,SUM(L103+M103+N103+O103-P103),"") ->  | R103: =IF(V103>1,SUM(Q103/(V103-1)),"") ->  | S103: =IF(V103>0,SUM(V103-1)*K103,"") ->  | T103: =IF(V103>1,SUM(U103/(V103-1)),"") ->  | U103: =IF(V103>0,SUM(Q103+S103),0) -> 0 | V103: 0
A104: 101 | D104: =$W$2 -> 220 | E104: =IF(C104<>"",SUM(D104-C104),"") ->  | F104: =$X$2/100 -> 0.8 | G104: =IF(C104<>"",TRUNC(E104*F104),"") ->  | H104: =IF(G104>$Y$2,$Y$2,G104) -> 65.00 | K104: =IF(C104<>"",H104,"") ->  | P104: =MIN($L104:$O104) -> 0 | Q104: =IF(V104>0,SUM(L104+M104+N104+O104-P104),"") ->  | R104: =IF(V104>1,SUM(Q104/(V104-1)),"") ->  | S104: =IF(V104>0,SUM(V104-1)*K104,"") ->  | T104: =IF(V104>1,SUM(U104/(V104-1)),"") ->  | U104: =IF(V104>0,SUM(Q104+S104),0) -> 0 | V104: =COUNTA(L104:O104) -> 0
A105: 102 | D105: =$W$2 -> 220 | E105: =IF(C105<>"",SUM(D105-C105),"") ->  | F105: =$X$2/100 -> 0.8 | G105: =IF(C105<>"",TRUNC(E105*F105),"") ->  | H105: =IF(G105>$Y$2,$Y$2,G105) -> 65.00 | K105: =IF(C105<>"",H105,"") ->  | P105: =MIN($L105:$O105) -> 0 | Q105: =IF(V105>0,SUM(L105+M105+N105+O105-P105),"") ->  | R105: =IF(V105>1,SUM(Q105/(V105-1)),"") ->  | S105: =IF(V105>0,SUM(V105-1)*K105,"") ->  | T105: =IF(V105>1,SUM(U105/(V105-1)),"") ->  | U105: =IF(V105>0,SUM(Q105+S105),0) -> 0 | V105: 0
A106: 103 | D106: =$W$2 -> 220 | E106: =IF(C106<>"",SUM(D106-C106),"") ->  | F106: =$X$2/100 -> 0.8 | G106: =IF(C106<>"",TRUNC(E106*F106),"") ->  | H106: =IF(G106>$Y$2,$Y$2,G106) -> 65.00 | K106: =IF(C106<>"",H106,"") ->  | P106: =MIN($L106:$O106) -> 0 | Q106: =IF(V106>0,SUM(L106+M106+N106+O106-P106),"") ->  | R106: =IF(V106>1,SUM(Q106/(V106-1)),"") ->  | S106: =IF(V106>0,SUM(V106-1)*K106,"") ->  | T106: =IF(V106>1,SUM(U106/(V106-1)),"") ->  | U106: =IF(V106>0,SUM(Q106+S106),0) -> 0 | V106: 0
A107: 104 | D107: =$W$2 -> 220 | E107: =IF(C107<>"",SUM(D107-C107),"") ->  | F107: =$X$2/100 -> 0.8 | G107: =IF(C107<>"",TRUNC(E107*F107),"") ->  | H107: =IF(G107>$Y$2,$Y$2,G107) -> 65.00 | K107: =IF(C107<>"",H107,"") ->  | P107: =MIN($L107:$O107) -> 0 | Q107: =IF(V107>0,SUM(L107+M107+N107+O107-P107),"") ->  | R107: =IF(V107>1,SUM(Q107/(V107-1)),"") ->  | S107: =IF(V107>0,SUM(V107-1)*K107,"") ->  | T107: =IF(V107>1,SUM(U107/(V107-1)),"") ->  | U107: =IF(V107>0,SUM(Q107+S107),0) -> 0 | V107: 0
A108: 105 | D108: =$W$2 -> 220 | E108: =IF(C108<>"",SUM(D108-C108),"") ->  | F108: =$X$2/100 -> 0.8 | G108: =IF(C108<>"",TRUNC(E108*F108),"") ->  | H108: =IF(G108>$Y$2,$Y$2,G108) -> 65.00 | K108: =IF(C108<>"",H108,"") ->  | P108: =MIN($L108:$O108) -> 0 | Q108: =IF(V108>0,SUM(L108+M108+N108+O108-P108),"") ->  | R108: =IF(V108>1,SUM(Q108/(V108-1)),"") ->  | S108: =IF(V108>0,SUM(V108-1)*K108,"") ->  | T108: =IF(V108>1,SUM(U108/(V108-1)),"") ->  | U108: =IF(V108>0,SUM(Q108+S108),0) -> 0 | V108: 0
A109: 106 | D109: =$W$2 -> 220 | E109: =IF(C109<>"",SUM(D109-C109),"") ->  | F109: =$X$2/100 -> 0.8 | G109: =IF(C109<>"",TRUNC(E109*F109),"") ->  | H109: =IF(G109>$Y$2,$Y$2,G109) -> 65.00 | K109: =IF(C109<>"",H109,"") ->  | P109: =MIN($L109:$O109) -> 0 | Q109: =IF(V109>0,SUM(L109+M109+N109+O109-P109),"") ->  | R109: =IF(V109>1,SUM(Q109/(V109-1)),"") ->  | S109: =IF(V109>0,SUM(V109-1)*K109,"") ->  | T109: =IF(V109>1,SUM(U109/(V109-1)),"") ->  | U109: =IF(V109>0,SUM(Q109+S109),0) -> 0 | V109: 0
A110: 107 | D110: =$W$2 -> 220 | E110: =IF(C110<>"",SUM(D110-C110),"") ->  | F110: =$X$2/100 -> 0.8 | G110: =IF(C110<>"",TRUNC(E110*F110),"") ->  | H110: =IF(G110>$Y$2,$Y$2,G110) -> 65.00 | K110: =IF(C110<>"",H110,"") ->  | P110: =MIN($L110:$O110) -> 0 | Q110: =IF(V110>0,SUM(L110+M110+N110+O110-P110),"") ->  | R110: =IF(V110>1,SUM(Q110/(V110-1)),"") ->  | S110: =IF(V110>0,SUM(V110-1)*K110,"") ->  | T110: =IF(V110>1,SUM(U110/(V110-1)),"") ->  | U110: =IF(V110>0,SUM(Q110+S110),0) -> 0 | V110: 0
A111: 108 | D111: =$W$2 -> 220 | E111: =IF(C111<>"",SUM(D111-C111),"") ->  | F111: =$X$2/100 -> 0.8 | G111: =IF(C111<>"",TRUNC(E111*F111),"") ->  | H111: =IF(G111>$Y$2,$Y$2,G111) -> 65.00 | K111: =IF(C111<>"",H111,"") ->  | P111: =MIN($L111:$O111) -> 0 | Q111: =IF(V111>0,SUM(L111+M111+N111+O111-P111),"") ->  | R111: =IF(V111>1,SUM(Q111/(V111-1)),"") ->  | S111: =IF(V111>0,SUM(V111-1)*K111,"") ->  | T111: =IF(V111>1,SUM(U111/(V111-1)),"") ->  | U111: =IF(V111>0,SUM(Q111+S111),0) -> 0 | V111: 0
A112: 109 | D112: =$W$2 -> 220 | E112: =IF(C112<>"",SUM(D112-C112),"") ->  | F112: =$X$2/100 -> 0.8 | G112: =IF(C112<>"",TRUNC(E112*F112),"") ->  | H112: =IF(G112>$Y$2,$Y$2,G112) -> 65.00 | K112: =IF(C112<>"",H112,"") ->  | P112: =MIN($L112:$O112) -> 0 | Q112: =IF(V112>0,SUM(L112+M112+N112+O112-P112),"") ->  | R112: =IF(V112>1,SUM(Q112/(V112-1)),"") ->  | S112: =IF(V112>0,SUM(V112-1)*K112,"") ->  | T112: =IF(V112>1,SUM(U112/(V112-1)),"") ->  | U112: =IF(V112>0,SUM(Q112+S112),0) -> 0 | V112: 0
A113: 110 | D113: =$W$2 -> 220 | E113: =IF(C113<>"",SUM(D113-C113),"") ->  | F113: =$X$2/100 -> 0.8 | G113: =IF(C113<>"",TRUNC(E113*F113),"") ->  | H113: =IF(G113>$Y$2,$Y$2,G113) -> 65 | K113: =IF(C113<>"",H113,"") ->  | P113: =MIN($L113:$O113) -> 0 | Q113: =IF(V113>0,SUM(L113+M113+N113+O113-P113),"") ->  | R113: =IF(V113>1,SUM(Q113/(V113-1)),"") ->  | S113: =IF(V113>0,SUM(V113-1)*K113,"") ->  | T113: =IF(V113>1,SUM(U113/(V113-1)),"") ->  | U113: =IF(V113>0,SUM(Q113+S113),0) -> 0 | V113: 0
A114: 111 | D114: =$W$2 -> 220 | E114: =IF(C114<>"",SUM(D114-C114),"") ->  | F114: =$X$2/100 -> 0.8 | G114: =IF(C114<>"",TRUNC(E114*F114),"") ->  | H114: =IF(G114>$Y$2,$Y$2,G114) -> 65 | K114: =IF(C114<>"",H114,"") ->  | P114: =MIN($L114:$O114) -> 0 | Q114: =IF(V114>0,SUM(L114+M114+N114+O114-P114),"") ->  | R114: =IF(V114>1,SUM(Q114/(V114-1)),"") ->  | S114: =IF(V114>0,SUM(V114-1)*K114,"") ->  | T114: =IF(V114>1,SUM(U114/(V114-1)),"") ->  | U114: =IF(V114>0,SUM(Q114+S114),0) -> 0 | V114: 0
A115: 112 | D115: =$W$2 -> 220 | E115: =IF(C115<>"",SUM(D115-C115),"") ->  | F115: =$X$2/100 -> 0.8 | G115: =IF(C115<>"",TRUNC(E115*F115),"") ->  | H115: =IF(G115>$Y$2,$Y$2,G115) -> 65 | K115: =IF(C115<>"",H115,"") ->  | P115: =MIN($L115:$O115) -> 0 | Q115: =IF(V115>0,SUM(L115+M115+N115+O115-P115),"") ->  | R115: =IF(V115>1,SUM(Q115/(V115-1)),"") ->  | S115: =IF(V115>0,SUM(V115-1)*K115,"") ->  | T115: =IF(V115>1,SUM(U115/(V115-1)),"") ->  | U115: =IF(V115>0,SUM(Q115+S115),0) -> 0 | V115: 0
A116: 113 | D116: =$W$2 -> 220 | E116: =IF(C116<>"",SUM(D116-C116),"") ->  | F116: =$X$2/100 -> 0.8 | G116: =IF(C116<>"",TRUNC(E116*F116),"") ->  | H116: =IF(G116>$Y$2,$Y$2,G116) -> 65 | K116: =IF(C116<>"",H116,"") ->  | P116: =MIN($L116:$O116) -> 0 | Q116: =IF(V116>0,SUM(L116+M116+N116+O116-P116),"") ->  | R116: =IF(V116>1,SUM(Q116/(V116-1)),"") ->  | S116: =IF(V116>0,SUM(V116-1)*K116,"") ->  | T116: =IF(V116>1,SUM(U116/(V116-1)),"") ->  | U116: =IF(V116>0,SUM(Q116+S116),0) -> 0 | V116: 0
A117: 114 | D117: =$W$2 -> 220 | E117: =IF(C117<>"",SUM(D117-C117),"") ->  | F117: =$X$2/100 -> 0.8 | G117: =IF(C117<>"",TRUNC(E117*F117),"") ->  | H117: =IF(G117>$Y$2,$Y$2,G117) -> 65 | K117: =IF(C117<>"",H117,"") ->  | P117: =MIN($L117:$O117) -> 0 | Q117: =IF(V117>0,SUM(L117+M117+N117+O117-P117),"") ->  | R117: =IF(V117>1,SUM(Q117/(V117-1)),"") ->  | S117: =IF(V117>0,SUM(V117-1)*K117,"") ->  | T117: =IF(V117>1,SUM(U117/(V117-1)),"") ->  | U117: =IF(V117>0,SUM(Q117+S117),0) -> 0 | V117: 0
A118: 115 | D118: =$W$2 -> 220 | E118: =IF(C118<>"",SUM(D118-C118),"") ->  | F118: =$X$2/100 -> 0.8 | G118: =IF(C118<>"",TRUNC(E118*F118),"") ->  | H118: =IF(G118>$Y$2,$Y$2,G118) -> 65 | K118: =IF(C118<>"",H118,"") ->  | P118: =MIN($L118:$O118) -> 0 | Q118: =IF(V118>0,SUM(L118+M118+N118+O118-P118),"") ->  | R118: =IF(V118>1,SUM(Q118/(V118-1)),"") ->  | S118: =IF(V118>0,SUM(V118-1)*K118,"") ->  | T118: =IF(V118>1,SUM(U118/(V118-1)),"") ->  | U118: =IF(V118>0,SUM(Q118+S118),0) -> 0 | V118: 0
A119: 116 | D119: =$W$2 -> 220 | E119: =IF(C119<>"",SUM(D119-C119),"") ->  | F119: =$X$2/100 -> 0.8 | G119: =IF(C119<>"",TRUNC(E119*F119),"") ->  | H119: =IF(G119>$Y$2,$Y$2,G119) -> 65 | K119: =IF(C119<>"",H119,"") ->  | P119: =MIN($L119:$O119) -> 0 | Q119: =IF(V119>0,SUM(L119+M119+N119+O119-P119),"") ->  | R119: =IF(V119>1,SUM(Q119/(V119-1)),"") ->  | S119: =IF(V119>0,SUM(V119-1)*K119,"") ->  | T119: =IF(V119>1,SUM(U119/(V119-1)),"") ->  | U119: =IF(V119>0,SUM(Q119+S119),0) -> 0 | V119: 0
A120: 117 | D120: =$W$2 -> 220 | E120: =IF(C120<>"",SUM(D120-C120),"") ->  | F120: =$X$2/100 -> 0.8 | G120: =IF(C120<>"",TRUNC(E120*F120),"") ->  | H120: =IF(G120>$Y$2,$Y$2,G120) -> 65 | K120: =IF(C120<>"",H120,"") ->  | P120: =MIN($L120:$O120) -> 0 | Q120: =IF(V120>0,SUM(L120+M120+N120+O120-P120),"") ->  | R120: =IF(V120>1,SUM(Q120/(V120-1)),"") ->  | S120: =IF(V120>0,SUM(V120-1)*K120,"") ->  | T120: =IF(V120>1,SUM(U120/(V120-1)),"") ->  | U120: =IF(V120>0,SUM(Q120+S120),0) -> 0 | V120: 0
A121: 118 | D121: =$W$2 -> 220 | E121: =IF(C121<>"",SUM(D121-C121),"") ->  | F121: =$X$2/100 -> 0.8 | G121: =IF(C121<>"",TRUNC(E121*F121),"") ->  | H121: =IF(G121>$Y$2,$Y$2,G121) -> 65 | K121: =IF(C121<>"",H121,"") ->  | P121: =MIN($L121:$O121) -> 0 | Q121: =IF(V121>0,SUM(L121+M121+N121+O121-P121),"") ->  | R121: =IF(V121>1,SUM(Q121/(V121-1)),"") ->  | S121: =IF(V121>0,SUM(V121-1)*K121,"") ->  | T121: =IF(V121>1,SUM(U121/(V121-1)),"") ->  | U121: =IF(V121>0,SUM(Q121+S121),0) -> 0 | V121: 0
A122: 119 | D122: =$W$2 -> 220 | E122: =IF(C122<>"",SUM(D122-C122),"") ->  | F122: =$X$2/100 -> 0.8 | G122: =IF(C122<>"",TRUNC(E122*F122),"") ->  | H122: =IF(G122>$Y$2,$Y$2,G122) -> 65 | K122: =IF(C122<>"",H122,"") ->  | P122: =MIN($L122:$O122) -> 0 | Q122: =IF(V122>0,SUM(L122+M122+N122+O122-P122),"") ->  | R122: =IF(V122>1,SUM(Q122/(V122-1)),"") ->  | S122: =IF(V122>0,SUM(V122-1)*K122,"") ->  | T122: =IF(V122>1,SUM(U122/(V122-1)),"") ->  | U122: =IF(V122>0,SUM(Q122+S122),0) -> 0 | V122: 0
A123: 120 | D123: =$W$2 -> 220 | E123: =IF(C123<>"",SUM(D123-C123),"") ->  | F123: =$X$2/100 -> 0.8 | G123: =IF(C123<>"",TRUNC(E123*F123),"") ->  | H123: =IF(G123>$Y$2,$Y$2,G123) -> 65.00 | K123: =IF(C123<>"",H123,"") ->  | P123: =MIN($L123:$O123) -> 0 | Q123: =IF(V123>0,SUM(L123+M123+N123+O123-P123),"") ->  | R123: =IF(V123>1,SUM(Q123/(V123-1)),"") ->  | S123: =IF(V123>0,SUM(V123-1)*K123,"") ->  | T123: =IF(V123>1,SUM(U123/(V123-1)),"") ->  | U123: =IF(V123>0,SUM(Q123+S123),0) -> 0 | V123: 0
